BODY,BODY NAME,DATE,TRANSACTION NUMBER,THEIR REF,CATEGORY,AMOUNT,SUPPLIER NAME,SUPPLIER CODE,EXPENSE AREA,EXPENSE TYPE,EXPENSE CODE
http://statistics.data.gov.uk/id/local-authority/12UE,Huntingdonshire District Council,13/08/2015,585027,STAFF,2,8,REDACTED PERSONAL DATA,CR025614,Countryside,Advertising/Promoting Services,255
http://statistics.data.gov.uk/id/local-authority/12UE,Huntingdonshire District Council,13/08/2015,174000,3009254128,5,80.88,Yell Limited,CR416111,One Leisure Huntingdon,Advertising/Promoting Services,255
http://statistics.data.gov.uk/id/local-authority/12UE,Huntingdonshire District Council,13/08/2015,174002,3009439325,5,122.4,Yell Limited,CR416111,One Leisure Huntingdon,Advertising/Promoting Services,255
http://statistics.data.gov.uk/id/local-authority/12UE,Huntingdonshire District Council,13/08/2015,174000,3009254128,5,80.88,Yell Limited,CR416111,One Leisure Ramsey,Advertising/Promoting Services,255
http://statistics.data.gov.uk/id/local-authority/12UE,Huntingdonshire District Council,13/08/2015,174002,3009439325,5,122.4,Yell Limited,CR416111,One Leisure Ramsey,Advertising/Promoting Services,255
http://statistics.data.gov.uk/id/local-authority/12UE,Huntingdonshire District Council,13/08/2015,174000,3009254128,5,80.88,Yell Limited,CR416111,One Leisure Sawtry,Advertising/Promoting Services,255
http://statistics.data.gov.uk/id/local-authority/12UE,Huntingdonshire District Council,13/08/2015,174002,3009439325,5,122.4,Yell Limited,CR416111,One Leisure Sawtry,Advertising/Promoting Services,255
http://statistics.data.gov.uk/id/local-authority/12UE,Huntingdonshire District Council,13/08/2015,174000,3009254128,5,80.88,Yell Limited,CR416111,One Leisure St Ives,Advertising/Promoting Services,255
http://statistics.data.gov.uk/id/local-authority/12UE,Huntingdonshire District Council,13/08/2015,174002,3009439325,5,122.4,Yell Limited,CR416111,One Leisure St Ives,Advertising/Promoting Services,255
http://statistics.data.gov.uk/id/local-authority/12UE,Huntingdonshire District Council,13/08/2015,174000,3009254128,5,80.88,Yell Limited,CR416111,One Leisure St Neots,Advertising/Promoting Services,255
http://statistics.data.gov.uk/id/local-authority/12UE,Huntingdonshire District Council,13/08/2015,174002,3009439325,5,122.4,Yell Limited,CR416111,One Leisure St Neots,Advertising/Promoting Services,255
http://statistics.data.gov.uk/id/local-authority/12UE,Huntingdonshire District Council,06/08/2015,173658,100909,5,1349.15,Newlyn Plc,CR409114,Council Tax,Bailiffs,703
http://statistics.data.gov.uk/id/local-authority/12UE,Huntingdonshire District Council,13/08/2015,173657,101179,5,2740.65,Newlyn Plc,CR409114,Council Tax,Bailiffs,703
http://statistics.data.gov.uk/id/local-authority/12UE,Huntingdonshire District Council,20/08/2015,174351,101326,5,798.31,Newlyn Plc,CR409114,Council Tax,Bailiffs,703
http://statistics.data.gov.uk/id/local-authority/12UE,Huntingdonshire District Council,27/08/2015,174545,101458,5,1193.3,Newlyn Plc,CR409114,Council Tax,Bailiffs,703
http://statistics.data.gov.uk/id/local-authority/12UE,Huntingdonshire District Council,13/08/2015,173251,567986,5,365.4,Lacons,CR422174,One Leisure Huntingdon,Bar Provisions,558
http://statistics.data.gov.uk/id/local-authority/12UE,Huntingdonshire District Council,20/08/2015,173668,58949,5,203.58,Snackline Direct Ltd,CR478090,One Leisure Huntingdon,Bar Provisions,558
http://statistics.data.gov.uk/id/local-authority/12UE,Huntingdonshire District Council,13/08/2015,174113,371909,5,96.46,South Lincs Food Service,CR033415,One Leisure Huntingdon,Bar Provisions,558
http://statistics.data.gov.uk/id/local-authority/12UE,Huntingdonshire District Council,06/08/2015,172904,2102088570,5,148.42,Booker Cash And Carry,CR027611,One Leisure St Ives,Bar Provisions,558
http://statistics.data.gov.uk/id/local-authority/12UE,Huntingdonshire District Council,06/08/2015,172984,2102088665,5,194.25,Booker Cash And Carry,CR027611,One Leisure St Ives,Bar Provisions,558
http://statistics.data.gov.uk/id/local-authority/12UE,Huntingdonshire District Council,13/08/2015,173635,2102106877,5,659.14,Booker Cash And Carry,CR027611,One Leisure St Ives,Bar Provisions,558
http://statistics.data.gov.uk/id/local-authority/12UE,Huntingdonshire District Council,06/08/2015,172418,566373,5,530.28,Lacons,CR422174,One Leisure St Ives,Bar Provisions,558
http://statistics.data.gov.uk/id/local-authority/12UE,Huntingdonshire District Council,13/08/2015,172796,567425,5,340.04,Lacons,CR422174,One Leisure St Ives,Bar Provisions,558
http://statistics.data.gov.uk/id/local-authority/12UE,Huntingdonshire District Council,20/08/2015,173250,568811,5,605.69,Lacons,CR422174,One Leisure St Ives,Bar Provisions,558
http://statistics.data.gov.uk/id/local-authority/12UE,Huntingdonshire District Council,13/08/2015,173605,569488,5,1402.7,Lacons,CR422174,One Leisure St Ives,Bar Provisions,558
http://statistics.data.gov.uk/id/local-authority/12UE,Huntingdonshire District Council,13/08/2015,173606,569561,5,471.65,Lacons,CR422174,One Leisure St Ives,Bar Provisions,558
http://statistics.data.gov.uk/id/local-authority/12UE,Huntingdonshire District Council,27/08/2015,173386,I124995,5,428.04,Oakham Ales,CR422253,One Leisure St Ives,Bar Provisions,558
http://statistics.data.gov.uk/id/local-authority/12UE,Huntingdonshire District Council,13/08/2015,172896,58767,5,140.3,Snackline Direct Ltd,CR478090,One Leisure St Ives,Bar Provisions,558
http://statistics.data.gov.uk/id/local-authority/12UE,Huntingdonshire District Council,06/08/2015,172463,255486,5,82.51,Westminster Foodservice,CR455156,One Leisure St Ives,Bar Provisions,558
http://statistics.data.gov.uk/id/local-authority/12UE,Huntingdonshire District Council,27/08/2015,173704,256695,5,47.98,Westminster Foodservice,CR455156,One Leisure St Ives,Bar Provisions,558
http://statistics.data.gov.uk/id/local-authority/12UE,Huntingdonshire District Council,06/08/2015,173756,608,5,2322,Elephant & Castle Freehouse & Motel,CR401969,Accommodation For Homeless,Bed & Breakfast Payment,818
http://statistics.data.gov.uk/id/local-authority/12UE,Huntingdonshire District Council,13/08/2015,174169,609,5,1782,Elephant & Castle Freehouse & Motel,CR401969,Accommodation For Homeless,Bed & Breakfast Payment,818
http://statistics.data.gov.uk/id/local-authority/12UE,Huntingdonshire District Council,20/08/2015,174515,610,5,918,Elephant & Castle Freehouse & Motel,CR401969,Homelessness Management,Bed & Breakfast Payment,818
http://statistics.data.gov.uk/id/local-authority/12UE,Huntingdonshire District Council,27/08/2015,585656,611 JW,5,702,Elephant & Castle Freehouse & Motel,CR401969,Homelessness Management,Bed & Breakfast Payment,818
http://statistics.data.gov.uk/id/local-authority/12UE,Huntingdonshire District Council,13/08/2015,173235,DI5N78909,5,949,Lexisnexis,CR000801,Electoral Registration,Books & Publications,250
http://statistics.data.gov.uk/id/local-authority/12UE,Huntingdonshire District Council,13/08/2015,173236,DI5N78909 - PAR,5,949,Lexisnexis,CR000801,Electoral Registration,Books & Publications,250
http://statistics.data.gov.uk/id/local-authority/12UE,Huntingdonshire District Council,20/08/2015,174219,399215,5,315,Riba Bookshops,CR000066,Environmental Management,Books & Publications,250
http://statistics.data.gov.uk/id/local-authority/12UE,Huntingdonshire District Council,27/08/2015,174005,2015/154,5,695.04,Primesight  Ltd,CR132710,Bus Shelters,Building Cleaning,440
http://statistics.data.gov.uk/id/local-authority/12UE,Huntingdonshire District Council,06/08/2015,172405,54754,5,1086,Beebys Limited,CR415822,Bus Stations,Building Cleaning,440
http://statistics.data.gov.uk/id/local-authority/12UE,Huntingdonshire District Council,06/08/2015,172402,1717,5,1212,G Ferrara Ltd,CR478949,Bus Stations,Building Cleaning,440
http://statistics.data.gov.uk/id/local-authority/12UE,Huntingdonshire District Council,27/08/2015,173815,3037,5,1043.74,Enterprise Support Services Uk Ltd,CR422509,E F H And Depots,Building Cleaning,440
http://statistics.data.gov.uk/id/local-authority/12UE,Huntingdonshire District Council,27/08/2015,173827,542029,5,378.2,Ecocleen Services Limited,CR406985,Off Street Parking,Building Cleaning,440
http://statistics.data.gov.uk/id/local-authority/12UE,Huntingdonshire District Council,27/08/2015,173815,3037,5,1185.49,Enterprise Support Services Uk Ltd,CR422509,One Leisure Huntingdon,Building Cleaning,440
http://statistics.data.gov.uk/id/local-authority/12UE,Huntingdonshire District Council,27/08/2015,173815,3037,5,798.4,Enterprise Support Services Uk Ltd,CR422509,One Leisure Ramsey,Building Cleaning,440
http://statistics.data.gov.uk/id/local-authority/12UE,Huntingdonshire District Council,27/08/2015,173815,3037,5,874.02,Enterprise Support Services Uk Ltd,CR422509,One Leisure Sawtry,Building Cleaning,440
http://statistics.data.gov.uk/id/local-authority/12UE,Huntingdonshire District Council,27/08/2015,173815,3037,5,2687.55,Enterprise Support Services Uk Ltd,CR422509,One Leisure St Ives,Building Cleaning,440
http://statistics.data.gov.uk/id/local-authority/12UE,Huntingdonshire District Council,27/08/2015,173815,3037,5,1307.12,Enterprise Support Services Uk Ltd,CR422509,One Leisure St Neots,Building Cleaning,440
http://statistics.data.gov.uk/id/local-authority/12UE,Huntingdonshire District Council,27/08/2015,173815,3037,5,3296.9,Enterprise Support Services Uk Ltd,CR422509,Pathfinder House Site,Building Cleaning,440
http://statistics.data.gov.uk/id/local-authority/12UE,Huntingdonshire District Council,27/08/2015,173831,542037,5,1047.54,Ecocleen Services Limited,CR406985,Public Conveniences,Building Cleaning,440
http://statistics.data.gov.uk/id/local-authority/12UE,Huntingdonshire District Council,27/08/2015,173830,542039,5,671.27,Ecocleen Services Limited,CR406985,Public Conveniences,Building Cleaning,440
http://statistics.data.gov.uk/id/local-authority/12UE,Huntingdonshire District Council,20/08/2015,173832,QY-13,5,78084.53,Graham,CR480029,Car Parks Capital,Building Construction,300
http://statistics.data.gov.uk/id/local-authority/12UE,Huntingdonshire District Council,20/08/2015,173707,QLA19H006-0013-,5,54434.27,Zurich Municipal,CR477397,Insurance Premium Holding,Building Insurance,414
http://statistics.data.gov.uk/id/local-authority/12UE,Huntingdonshire District Council,20/08/2015,174443,1108,5,1092,Burner & Combustion Ltd,CR422900,Countryside,Building Mtce,303
http://statistics.data.gov.uk/id/local-authority/12UE,Huntingdonshire District Council,27/08/2015,173628,59017,5,255,Britannia Fire & Security Ltd,CR410090,E F H And Depots,Building Mtce,303
http://statistics.data.gov.uk/id/local-authority/12UE,Huntingdonshire District Council,20/08/2015,173316,DIHH/00002868,5,2856,Luminus Homes,CR401276,Housing Services Other,Building Mtce,303
http://statistics.data.gov.uk/id/local-authority/12UE,Huntingdonshire District Council,20/08/2015,173314,DIHH/00002869,5,563.53,Luminus Homes,CR401276,Housing Services Other,Building Mtce,303
http://statistics.data.gov.uk/id/local-authority/12UE,Huntingdonshire District Council,06/08/2015,173367,9402,5,120,Roger Wilson Electronics,CR028041,Leisure Centres Capital,Building Mtce,303
http://statistics.data.gov.uk/id/local-authority/12UE,Huntingdonshire District Council,13/08/2015,173438,C020039794,5,382.46,Stannah Lifts,CR088939,Off Street Parking,Building Mtce,303
http://statistics.data.gov.uk/id/local-authority/12UE,Huntingdonshire District Council,06/08/2015,173360,9403,5,302.48,Roger Wilson Electronics,CR028041,One Leisure Huntingdon,Building Mtce,303
http://statistics.data.gov.uk/id/local-authority/12UE,Huntingdonshire District Council,27/08/2015,174505,9422,5,261.24,Roger Wilson Electronics,CR028041,One Leisure Huntingdon,Building Mtce,303
http://statistics.data.gov.uk/id/local-authority/12UE,Huntingdonshire District Council,27/08/2015,174136,9,5,384.35,Skl Property Services,CR422708,One Leisure Huntingdon,Building Mtce,303
http://statistics.data.gov.uk/id/local-authority/12UE,Huntingdonshire District Council,20/08/2015,174466,563065,5,1904.7,Barkston Plastics Ltd,CR422128,One Leisure St Ives,Building Mtce,303
http://statistics.data.gov.uk/id/local-authority/12UE,Huntingdonshire District Council,27/08/2015,174523,10/08/2015,5,420,Dms Home Improvements & Electrical,CR479202,One Leisure St Ives,Building Mtce,303
http://statistics.data.gov.uk/id/local-authority/12UE,Huntingdonshire District Council,27/08/2015,173988,83143,5,442.49,Harry Dalby Engineering Ltd,CR455770,One Leisure St Ives,Building Mtce,303
http://statistics.data.gov.uk/id/local-authority/12UE,Huntingdonshire District Council,06/08/2015,173367,9402,5,709.8,Roger Wilson Electronics,CR028041,One Leisure St Ives,Building Mtce,303
http://statistics.data.gov.uk/id/local-authority/12UE,Huntingdonshire District Council,27/08/2015,173751,9408,5,366.96,Roger Wilson Electronics,CR028041,One Leisure St Ives,Building Mtce,303
http://statistics.data.gov.uk/id/local-authority/12UE,Huntingdonshire District Council,27/08/2015,174218,10,5,548.13,Skl Property Services,CR422708,One Leisure St Ives,Building Mtce,303
http://statistics.data.gov.uk/id/local-authority/12UE,Huntingdonshire District Council,13/08/2015,173724,78418,5,453.6,Jsa Leisure Ltd,CR40187,One Leisure St Neots,Building Mtce,303
http://statistics.data.gov.uk/id/local-authority/12UE,Huntingdonshire District Council,06/08/2015,172397,1718,5,456,G Ferrara Ltd,CR478949,Parks & Open Spaces,Building Mtce,303
http://statistics.data.gov.uk/id/local-authority/12UE,Huntingdonshire District Council,27/08/2015,174449,4220065933,5,860.97,Andrew Sykes  Hire Ltd,CR480059,Pathfinder House Site,Building Mtce,303
http://statistics.data.gov.uk/id/local-authority/12UE,Huntingdonshire District Council,20/08/2015,173626,58981,5,11646,Britannia Fire & Security Ltd,CR410090,Pathfinder House Site,Building Mtce,303
http://statistics.data.gov.uk/id/local-authority/12UE,Huntingdonshire District Council,27/08/2015,173627,59022,5,390,Britannia Fire & Security Ltd,CR410090,Pathfinder House Site,Building Mtce,303
http://statistics.data.gov.uk/id/local-authority/12UE,Huntingdonshire District Council,27/08/2015,174674,BLI 2008 0004 H,5,265.02,Britlux Ltd,CR422072,Pathfinder House Site,Building Mtce,303
http://statistics.data.gov.uk/id/local-authority/12UE,Huntingdonshire District Council,20/08/2015,174358,201,5,300,Dms Home Improvements & Electrical,CR479202,Pathfinder House Site,Building Mtce,303
http://statistics.data.gov.uk/id/local-authority/12UE,Huntingdonshire District Council,27/08/2015,173811,3039,5,1997.04,Enterprise Support Services Uk Ltd,CR422509,Pathfinder House Site,Building Mtce,303
http://statistics.data.gov.uk/id/local-authority/12UE,Huntingdonshire District Council,20/08/2015,172026,24573,5,3663,Hygiene Solutions,CR477443,Pathfinder House Site,Building Mtce,303
http://statistics.data.gov.uk/id/local-authority/12UE,Huntingdonshire District Council,27/08/2015,174030,9524,5,1013.38,Playfords Ltd,CR479055,Pathfinder House Site,Building Mtce,303
http://statistics.data.gov.uk/id/local-authority/12UE,Huntingdonshire District Council,27/08/2015,173611,587114 01,5,281.88,Qvs Huntingdon,CR416542,Pathfinder House Site,Building Mtce,303
http://statistics.data.gov.uk/id/local-authority/12UE,Huntingdonshire District Council,20/08/2015,173787,105159,5,3829.14,Cale Briparc Ltd,CR401137,Off Street Parking,Car Park Machines,522
http://statistics.data.gov.uk/id/local-authority/12UE,Huntingdonshire District Council,27/08/2015,174514,12849,5,50.22,Jade Security Services Ltd,CR422256,Countryside,Cash Collection,702
http://statistics.data.gov.uk/id/local-authority/12UE,Huntingdonshire District Council,27/08/2015,174514,12849,5,385.02,Jade Security Services Ltd,CR422256,Interest Received,Cash Collection,702
http://statistics.data.gov.uk/id/local-authority/12UE,Huntingdonshire District Council,06/08/2015,172852,12740,5,5800.32,Jade Security Services Ltd,CR422256,Off Street Parking,Cash Collection,702
http://statistics.data.gov.uk/id/local-authority/12UE,Huntingdonshire District Council,27/08/2015,174514,12849,5,301.32,Jade Security Services Ltd,CR422256,One Leisure Huntingdon,Cash Collection,702
http://statistics.data.gov.uk/id/local-authority/12UE,Huntingdonshire District Council,27/08/2015,174514,12849,5,66.96,Jade Security Services Ltd,CR422256,One Leisure Ramsey,Cash Collection,702
http://statistics.data.gov.uk/id/local-authority/12UE,Huntingdonshire District Council,27/08/2015,174514,12849,5,66.96,Jade Security Services Ltd,CR422256,One Leisure Sawtry,Cash Collection,702
http://statistics.data.gov.uk/id/local-authority/12UE,Huntingdonshire District Council,27/08/2015,174514,12849,5,234.36,Jade Security Services Ltd,CR422256,One Leisure St Ives,Cash Collection,702
http://statistics.data.gov.uk/id/local-authority/12UE,Huntingdonshire District Council,27/08/2015,174514,12849,5,468.72,Jade Security Services Ltd,CR422256,One Leisure St Neots,Cash Collection,702
http://statistics.data.gov.uk/id/local-authority/12UE,Huntingdonshire District Council,13/08/2015,174206,92015,5,1103.25,Brookes,CR422866,Restaurant,Catering,710
http://statistics.data.gov.uk/id/local-authority/12UE,Huntingdonshire District Council,13/08/2015,173350,2102100533,5,315.22,Booker Cash And Carry,CR027611,Countryside,Catering Materials,559
http://statistics.data.gov.uk/id/local-authority/12UE,Huntingdonshire District Council,27/08/2015,174413,2102119274,5,397.28,Booker Cash And Carry,CR027611,Countryside,Catering Materials,559
http://statistics.data.gov.uk/id/local-authority/12UE,Huntingdonshire District Council,06/08/2015,172529,825311,5,408.2,King Bros,CR411339,Countryside,Catering Materials,559
http://statistics.data.gov.uk/id/local-authority/12UE,Huntingdonshire District Council,06/08/2015,172590,826130,5,272.34,King Bros,CR411339,Countryside,Catering Materials,559
http://statistics.data.gov.uk/id/local-authority/12UE,Huntingdonshire District Council,13/08/2015,173289,827026,5,465.05,King Bros,CR411339,Countryside,Catering Materials,559
http://statistics.data.gov.uk/id/local-authority/12UE,Huntingdonshire District Council,20/08/2015,173349,827449,5,379.46,King Bros,CR411339,Countryside,Catering Materials,559
http://statistics.data.gov.uk/id/local-authority/12UE,Huntingdonshire District Council,27/08/2015,173788,828270,5,59.2,King Bros,CR411339,Countryside,Catering Materials,559
http://statistics.data.gov.uk/id/local-authority/12UE,Huntingdonshire District Council,27/08/2015,173788,828270,5,321.08,King Bros,CR411339,Countryside,Catering Materials,559
http://statistics.data.gov.uk/id/local-authority/12UE,Huntingdonshire District Council,27/08/2015,173774,438387,5,499.76,Pilgrim Foodservice Ltd,CR455695,Countryside,Catering Materials,559
http://statistics.data.gov.uk/id/local-authority/12UE,Huntingdonshire District Council,13/08/2015,174113,371909,5,142.53,South Lincs Food Service,CR033415,One Leisure Huntingdon,Catering Materials,559
http://statistics.data.gov.uk/id/local-authority/12UE,Huntingdonshire District Council,13/08/2015,173364,2102099291,5,14.19,Booker Cash And Carry,CR027611,One Leisure Sawtry,Catering Materials,559
http://statistics.data.gov.uk/id/local-authority/12UE,Huntingdonshire District Council,06/08/2015,172904,2102088570,5,37.16,Booker Cash And Carry,CR027611,One Leisure St Ives,Catering Materials,559
http://statistics.data.gov.uk/id/local-authority/12UE,Huntingdonshire District Council,06/08/2015,172984,2102088665,5,10.5,Booker Cash And Carry,CR027611,One Leisure St Ives,Catering Materials,559
http://statistics.data.gov.uk/id/local-authority/12UE,Huntingdonshire District Council,13/08/2015,173239,2102098672,5,228.44,Booker Cash And Carry,CR027611,One Leisure St Ives,Catering Materials,559
http://statistics.data.gov.uk/id/local-authority/12UE,Huntingdonshire District Council,13/08/2015,173635,2102106877,5,58.01,Booker Cash And Carry,CR027611,One Leisure St Ives,Catering Materials,559
http://statistics.data.gov.uk/id/local-authority/12UE,Huntingdonshire District Council,20/08/2015,173393,INV020968,5,368.88,Slush Puppie Ltd,CR455958,One Leisure St Ives,Catering Materials,559
http://statistics.data.gov.uk/id/local-authority/12UE,Huntingdonshire District Council,13/08/2015,172896,58767,5,54.44,Snackline Direct Ltd,CR478090,One Leisure St Ives,Catering Materials,559
http://statistics.data.gov.uk/id/local-authority/12UE,Huntingdonshire District Council,13/08/2015,172885,365226,5,293.47,South Lincs Food Service,CR033415,One Leisure St Ives,Catering Materials,559
http://statistics.data.gov.uk/id/local-authority/12UE,Huntingdonshire District Council,06/08/2015,172463,255486,5,161.3,Westminster Foodservice,CR455156,One Leisure St Ives,Catering Materials,559
http://statistics.data.gov.uk/id/local-authority/12UE,Huntingdonshire District Council,27/08/2015,173704,256695,5,222.5,Westminster Foodservice,CR455156,One Leisure St Ives,Catering Materials,559
http://statistics.data.gov.uk/id/local-authority/12UE,Huntingdonshire District Council,27/08/2015,173745,44SI4405241,5,748.5,Brenntag Uk Ltd,CR015017,One Leisure Ramsey,Chemicals,551
http://statistics.data.gov.uk/id/local-authority/12UE,Huntingdonshire District Council,20/08/2015,173233,44SI 4405007,5,495.61,Brenntag Uk Ltd,CR015017,One Leisure Sawtry,Chemicals,551
http://statistics.data.gov.uk/id/local-authority/12UE,Huntingdonshire District Council,20/08/2015,173061,44SI4404967,5,889.76,Brenntag Uk Ltd,CR015017,One Leisure St Ives,Chemicals,551
http://statistics.data.gov.uk/id/local-authority/12UE,Huntingdonshire District Council,27/08/2015,174856,C-0002152028,5,184.72,Computershare Vouchers Ltd,CR412205,Human Resources,Childcare Admin Vouchers,144
http://statistics.data.gov.uk/id/local-authority/12UE,Huntingdonshire District Council,06/08/2015,172789,158013,5,371.8,Chemaide Ltd,CR413480,One Leisure Huntingdon,Cleaning Materials,443
http://statistics.data.gov.uk/id/local-authority/12UE,Huntingdonshire District Council,27/08/2015,173752,3649216,1,327.98,Espo,CR006566,One Leisure St Ives,Cleaning Materials,443
http://statistics.data.gov.uk/id/local-authority/12UE,Huntingdonshire District Council,13/08/2015,173001,53409,5,333.01,Maskearaid Ind Supplies,CR033423,One Leisure St Ives,Cleaning Materials,443
http://statistics.data.gov.uk/id/local-authority/12UE,Huntingdonshire District Council,27/08/2015,173436,53494,5,436.27,Maskearaid Ind Supplies,CR033423,One Leisure St Neots,Cleaning Materials,443
http://statistics.data.gov.uk/id/local-authority/12UE,Huntingdonshire District Council,06/08/2015,173776,25036,5,270,Emmerson Doors Ltd,CR422100,Street Cleaning,Compensation,811
http://statistics.data.gov.uk/id/local-authority/12UE,Huntingdonshire District Council,20/08/2015,173668,58949,5,190.04,Snackline Direct Ltd,CR478090,One Leisure Huntingdon,Confectionery,572
http://statistics.data.gov.uk/id/local-authority/12UE,Huntingdonshire District Council,13/08/2015,174113,371909,5,34.68,South Lincs Food Service,CR033415,One Leisure Huntingdon,Confectionery,572
http://statistics.data.gov.uk/id/local-authority/12UE,Huntingdonshire District Council,06/08/2015,172904,2102088570,5,102.56,Booker Cash And Carry,CR027611,One Leisure St Ives,Confectionery,572
http://statistics.data.gov.uk/id/local-authority/12UE,Huntingdonshire District Council,13/08/2015,173635,2102106877,5,38.44,Booker Cash And Carry,CR027611,One Leisure St Ives,Confectionery,572
http://statistics.data.gov.uk/id/local-authority/12UE,Huntingdonshire District Council,13/08/2015,172896,58767,5,57.11,Snackline Direct Ltd,CR478090,One Leisure St Ives,Confectionery,572
http://statistics.data.gov.uk/id/local-authority/12UE,Huntingdonshire District Council,13/08/2015,172885,365226,5,32.25,South Lincs Food Service,CR033415,One Leisure St Ives,Confectionery,572
http://statistics.data.gov.uk/id/local-authority/12UE,Huntingdonshire District Council,06/08/2015,172463,255486,5,33.34,Westminster Foodservice,CR455156,One Leisure St Ives,Confectionery,572
http://statistics.data.gov.uk/id/local-authority/12UE,Huntingdonshire District Council,27/08/2015,173704,256695,5,50,Westminster Foodservice,CR455156,One Leisure St Ives,Confectionery,572
http://statistics.data.gov.uk/id/local-authority/12UE,Huntingdonshire District Council,06/08/2015,172372,9165070,6,9072,East Of England Lga,CR422620,Chief Executive & Comt,Consultants,711
http://statistics.data.gov.uk/id/local-authority/12UE,Huntingdonshire District Council,06/08/2015,172373,9165085,6,13728,East Of England Lga,CR422620,Chief Executive & Comt,Consultants,711
http://statistics.data.gov.uk/id/local-authority/12UE,Huntingdonshire District Council,06/08/2015,172370,01/15/HDC/0004,5,13662,Hester Management Services Ltd,CR422903,Chief Executive & Comt,Consultants,711
http://statistics.data.gov.uk/id/local-authority/12UE,Huntingdonshire District Council,06/08/2015,172362,01/15/HDC003,5,14420.4,Hester Management Services Ltd,CR422903,Chief Executive & Comt,Consultants,711
http://statistics.data.gov.uk/id/local-authority/12UE,Huntingdonshire District Council,06/08/2015,172368,01/15HDC002,5,13662,Hester Management Services Ltd,CR422903,Chief Executive & Comt,Consultants,711
http://statistics.data.gov.uk/id/local-authority/12UE,Huntingdonshire District Council,06/08/2015,173398,6810/15/465/PA,5,720,Reading Agricultural Consultants,CR404991,Dc Application Processing,Consultants,711
http://statistics.data.gov.uk/id/local-authority/12UE,Huntingdonshire District Council,06/08/2015,172472,32,5,780,Jumoo Ltd,CR422907,Development Team,Consultants,711
http://statistics.data.gov.uk/id/local-authority/12UE,Huntingdonshire District Council,06/08/2015,172472,32,5,1560,Jumoo Ltd,CR422907,Development Team,Consultants,711
http://statistics.data.gov.uk/id/local-authority/12UE,Huntingdonshire District Council,06/08/2015,172472,32,5,780,Jumoo Ltd,CR422907,Development Team,Consultants,711
http://statistics.data.gov.uk/id/local-authority/12UE,Huntingdonshire District Council,27/08/2015,173610,113461,5,840,Rsa Environmental Health Limited,CR482415,Human Resources,Consultants,711
http://statistics.data.gov.uk/id/local-authority/12UE,Huntingdonshire District Council,27/08/2015,174032,1111209980,5,18933.78,Deloitte Llp,CR400573,Local Development Framework,Consultants,711
http://statistics.data.gov.uk/id/local-authority/12UE,Huntingdonshire District Council,06/08/2015,172178,1111203723,5,29206.48,Deloitte Llp,CR400573,Project Contributions,Consultants,711
http://statistics.data.gov.uk/id/local-authority/12UE,Huntingdonshire District Council,27/08/2015,174664,1111214873,5,12426,Deloitte Llp,CR400573,Project Contributions,Consultants,711
http://statistics.data.gov.uk/id/local-authority/12UE,Huntingdonshire District Council,06/08/2015,173020,1254,5,1500,Wood Green Animal Shelters,CR019139,Animal Welfare,Contribution (Paid Out),810
http://statistics.data.gov.uk/id/local-authority/12UE,Huntingdonshire District Council,06/08/2015,173021,1255,5,1700,Wood Green Animal Shelters,CR019139,Animal Welfare,Contribution (Paid Out),810
http://statistics.data.gov.uk/id/local-authority/12UE,Huntingdonshire District Council,13/08/2015,173694,518,5,1907.38,Hact,CR455657,Concessionary Fares,Contribution (Paid Out),810
http://statistics.data.gov.uk/id/local-authority/12UE,Huntingdonshire District Council,20/08/2015,584965,RECYCLING CREDI,1,396.9,Warboys  Parish Council,CR002490,Recycling,Contribution (Paid Out),810
http://statistics.data.gov.uk/id/local-authority/12UE,Huntingdonshire District Council,27/08/2015,174221,94324654/3000,5,1545.6,Bsi,CR40082,Environmental Management,Corporate Subscriptions,754
http://statistics.data.gov.uk/id/local-authority/12UE,Huntingdonshire District Council,27/08/2015,174014,834470,5,1080,East Cambridgeshire District Council,CR413319,Financial Services Mus,Corporate Subscriptions,754
http://statistics.data.gov.uk/id/local-authority/12UE,Huntingdonshire District Council,13/08/2015,174026,15078,5,1740,Pos Enterprises,CR413287,Local Development Framework,Corporate Subscriptions,754
http://statistics.data.gov.uk/id/local-authority/12UE,Huntingdonshire District Council,27/08/2015,174856,C-0002152028,5,4397.96,Computershare Vouchers Ltd,CR412205,Child Care Vouchers - Payroll,Deductions Paid To Third Party,26
http://statistics.data.gov.uk/id/local-authority/12UE,Huntingdonshire District Council,27/08/2015,174674,BLI 2008 0004 H,5,16.5,Britlux Ltd,CR422072,Pathfinder House Site,Delivery Charges,232
http://statistics.data.gov.uk/id/local-authority/12UE,Huntingdonshire District Council,27/08/2015,174830,10718567,5,1025.87,Euramka Promotions Ltd,CR001864,Grounds Maintenance,Diesel,615
http://statistics.data.gov.uk/id/local-authority/12UE,Huntingdonshire District Council,27/08/2015,174830,10718567,5,48.65,Euramka Promotions Ltd,CR001864,Grounds Maintenance,Diesel,615
http://statistics.data.gov.uk/id/local-authority/12UE,Huntingdonshire District Council,20/08/2015,173814,139855,5,3123.41,Hawkesworth Appliance Testing Ltd,CR422905,Facilities Mgt,Electrical Testing,383
http://statistics.data.gov.uk/id/local-authority/12UE,Huntingdonshire District Council,27/08/2015,174670,41226290,5,1986.99,Swalec,CR407130,Countryside,Electricity,420
http://statistics.data.gov.uk/id/local-authority/12UE,Huntingdonshire District Council,06/08/2015,172561,600009060,5,518.4,Edf Energy Customer Field Services,CR477611,E F H And Depots,Electricity,420
http://statistics.data.gov.uk/id/local-authority/12UE,Huntingdonshire District Council,13/08/2015,173736,65924,5,2848.18,Haven Power Ltd,CR455940,E F H And Depots,Electricity,420
http://statistics.data.gov.uk/id/local-authority/12UE,Huntingdonshire District Council,20/08/2015,174210,481291201,5,1214.88,Swalec,CR407130,Housing Services Other,Electricity,420
http://statistics.data.gov.uk/id/local-authority/12UE,Huntingdonshire District Council,27/08/2015,174669,371226896,5,304.93,Swalec,CR407130,Off Street Parking,Electricity,420
http://statistics.data.gov.uk/id/local-authority/12UE,Huntingdonshire District Council,27/08/2015,174678,441567103,5,1877.58,Swalec,CR407130,Off Street Parking,Electricity,420
http://statistics.data.gov.uk/id/local-authority/12UE,Huntingdonshire District Council,20/08/2015,174216,841226380,5,257.3,Swalec,CR407130,Off Street Parking,Electricity,420
http://statistics.data.gov.uk/id/local-authority/12UE,Huntingdonshire District Council,13/08/2015,173739,65916,5,5009.51,Haven Power Ltd,CR455940,One Leisure Huntingdon,Electricity,420
http://statistics.data.gov.uk/id/local-authority/12UE,Huntingdonshire District Council,20/08/2015,174367,381239505,5,735.42,Swalec,CR407130,One Leisure Huntingdon,Electricity,420
http://statistics.data.gov.uk/id/local-authority/12UE,Huntingdonshire District Council,20/08/2015,174364,341225796,5,2918.01,Swalec,CR407130,One Leisure Ramsey,Electricity,420
http://statistics.data.gov.uk/id/local-authority/12UE,Huntingdonshire District Council,20/08/2015,174366,941240466,5,4119.76,Swalec,CR407130,One Leisure Sawtry,Electricity,420
http://statistics.data.gov.uk/id/local-authority/12UE,Huntingdonshire District Council,13/08/2015,173735,65919,5,11228.41,Haven Power Ltd,CR455940,One Leisure St Ives,Electricity,420
http://statistics.data.gov.uk/id/local-authority/12UE,Huntingdonshire District Council,13/08/2015,173742,65922,5,2213.18,Haven Power Ltd,CR455940,One Leisure St Ives,Electricity,420
http://statistics.data.gov.uk/id/local-authority/12UE,Huntingdonshire District Council,13/08/2015,173741,65914,5,9188.63,Haven Power Ltd,CR455940,One Leisure St Neots,Electricity,420
http://statistics.data.gov.uk/id/local-authority/12UE,Huntingdonshire District Council,27/08/2015,174666,901402498,5,313.89,Swalec,CR407130,Parks & Open Spaces,Electricity,420
http://statistics.data.gov.uk/id/local-authority/12UE,Huntingdonshire District Council,13/08/2015,173733,65912,5,10091.25,Haven Power Ltd,CR455940,Pathfinder House Site,Electricity,420
http://statistics.data.gov.uk/id/local-authority/12UE,Huntingdonshire District Council,20/08/2015,174211,541125403,5,499.35,Swalec,CR407130,Public Conveniences,Electricity,420
http://statistics.data.gov.uk/id/local-authority/12UE,Huntingdonshire District Council,20/08/2015,174458,REDACTED PERSONAL DATA,5,360,Sarfo Solicitors,CR415973,Revenue Services Mus,Enquiries,723
http://statistics.data.gov.uk/id/local-authority/12UE,Huntingdonshire District Council,20/08/2015,174518,3380,5,6455.75,Brian Shaw Concerts,CR422269,One Leisure St Ives,Entertainments Inc Cable Tv,744
http://statistics.data.gov.uk/id/local-authority/12UE,Huntingdonshire District Council,06/08/2015,173603,39932,5,300,Dings Entertainment,CR412228,One Leisure St Ives,Entertainments Inc Cable Tv,744
http://statistics.data.gov.uk/id/local-authority/12UE,Huntingdonshire District Council,13/08/2015,174167,07.08.2015,5,300,Mrs  Natalie Kiernan,CR455676,One Leisure St Ives,Entertainments Inc Cable Tv,744
http://statistics.data.gov.uk/id/local-authority/12UE,Huntingdonshire District Council,27/08/2015,174525,8245,5,350,Starlite Roadshow,CR024127,One Leisure St Ives,Entertainments Inc Cable Tv,744
http://statistics.data.gov.uk/id/local-authority/12UE,Huntingdonshire District Council,20/08/2015,174509,BOOGIE NIGHT,5,991.59,Starlite Roadshow,CR024127,One Leisure St Ives,Entertainments Inc Cable Tv,744
http://statistics.data.gov.uk/id/local-authority/12UE,Huntingdonshire District Council,20/08/2015,173331,510722,5,432,Environmental Scientifics Group Ltd,CR416941,Air Quality,Equipment,500
http://statistics.data.gov.uk/id/local-authority/12UE,Huntingdonshire District Council,13/08/2015,585027,STAFF,2,208.25,REDACTED PERSONAL DATA,CR025614,Countryside,Equipment,500
http://statistics.data.gov.uk/id/local-authority/12UE,Huntingdonshire District Council,27/08/2015,173744,SINV00073423,5,3244.8,Bist,CR422733,Environmental Management,Equipment,500
http://statistics.data.gov.uk/id/local-authority/12UE,Huntingdonshire District Council,20/08/2015,174065,41989,5,169.49,Groundsman,CR452706,Grounds Maintenance,Equipment,500
http://statistics.data.gov.uk/id/local-authority/12UE,Huntingdonshire District Council,20/08/2015,173298,RSIN0147107,5,1800,Rigby Taylor Ltd,CR001345,Grounds Maintenance,Equipment,500
http://statistics.data.gov.uk/id/local-authority/12UE,Huntingdonshire District Council,20/08/2015,173298,RSIN0147107,5,150,Rigby Taylor Ltd,CR001345,Grounds Maintenance,Equipment,500
http://statistics.data.gov.uk/id/local-authority/12UE,Huntingdonshire District Council,13/08/2015,173440,15008468,5,1447.2,Technogym Uk Ltd,CR033037,One Leisure Huntingdon,Equipment,500
http://statistics.data.gov.uk/id/local-authority/12UE,Huntingdonshire District Council,13/08/2015,173440,15008468,5,1447.2,Technogym Uk Ltd,CR033037,One Leisure Ramsey,Equipment,500
http://statistics.data.gov.uk/id/local-authority/12UE,Huntingdonshire District Council,13/08/2015,173440,15008468,5,723.6,Technogym Uk Ltd,CR033037,One Leisure Sawtry,Equipment,500
http://statistics.data.gov.uk/id/local-authority/12UE,Huntingdonshire District Council,27/08/2015,173752,3649216,1,25.22,Espo,CR006566,One Leisure St Ives,Equipment,500
http://statistics.data.gov.uk/id/local-authority/12UE,Huntingdonshire District Council,13/08/2015,173440,15008468,5,2170.8,Technogym Uk Ltd,CR033037,One Leisure St Ives,Equipment,500
http://statistics.data.gov.uk/id/local-authority/12UE,Huntingdonshire District Council,13/08/2015,173440,15008468,5,1447.2,Technogym Uk Ltd,CR033037,One Leisure St Neots,Equipment,500
http://statistics.data.gov.uk/id/local-authority/12UE,Huntingdonshire District Council,13/08/2015,174141,3031402592,5,496.8,Boc,CR027641,One Leisure Huntingdon,Equipment Hire,507
http://statistics.data.gov.uk/id/local-authority/12UE,Huntingdonshire District Council,27/08/2015,174112,40512,5,582,Coffee Solutions,CR480375,One Leisure Huntingdon,Equipment Hire,507
http://statistics.data.gov.uk/id/local-authority/12UE,Huntingdonshire District Council,06/08/2015,172794,62660296,5,732,Phs Group Ltd,CR032018,One Leisure Huntingdon,Equipment Hire,507
http://statistics.data.gov.uk/id/local-authority/12UE,Huntingdonshire District Council,20/08/2015,173707,QLA19H006-0013-,5,5483.86,Zurich Municipal,CR477397,Helpdesk,Equipment Ins/All Risks,510
http://statistics.data.gov.uk/id/local-authority/12UE,Huntingdonshire District Council,20/08/2015,173707,QLA19H006-0013-,5,5262.83,Zurich Municipal,CR477397,Insurance Premium Holding,Equipment Ins/All Risks,510
http://statistics.data.gov.uk/id/local-authority/12UE,Huntingdonshire District Council,27/08/2015,174059,4114,5,1386,Access Hire And Hydraulics,CR422526,C C T V,Equipment Maintenance,511
http://statistics.data.gov.uk/id/local-authority/12UE,Huntingdonshire District Council,20/08/2015,173217,SIN077493,5,18200,Quadrant Security Group,CR027775,C C T V,Equipment Maintenance,511
http://statistics.data.gov.uk/id/local-authority/12UE,Huntingdonshire District Council,20/08/2015,173219,SIN077494,5,24,Quadrant Security Group,CR027775,C C T V,Equipment Maintenance,511
http://statistics.data.gov.uk/id/local-authority/12UE,Huntingdonshire District Council,20/08/2015,173219,SIN077494,5,334.31,Quadrant Security Group,CR027775,C C T V,Equipment Maintenance,511
http://statistics.data.gov.uk/id/local-authority/12UE,Huntingdonshire District Council,13/08/2015,173063,1119382390,5,2332.84,Konica Minolta,CR478866,Document Centre,Equipment Maintenance,511
http://statistics.data.gov.uk/id/local-authority/12UE,Huntingdonshire District Council,06/08/2015,173227,50019654,5,4251.41,Moore Paragon Uk Limited Pss,CR030863,Document Centre,Equipment Maintenance,511
http://statistics.data.gov.uk/id/local-authority/12UE,Huntingdonshire District Council,13/08/2015,172834,438798,5,766.01,Zip Heaters Uk Ltd,CR478275,E F H And Depots,Equipment Maintenance,511
http://statistics.data.gov.uk/id/local-authority/12UE,Huntingdonshire District Council,20/08/2015,174049,142884,5,1539.9,Tecalemit Garage Equipment Co Ltd,CR477683,Fleet Management,Equipment Maintenance,511
http://statistics.data.gov.uk/id/local-authority/12UE,Huntingdonshire District Council,20/08/2015,173378,42001201 R7,5,7161,Imtech Aqua Maintenance Ltd,CR422225,Helpdesk,Equipment Maintenance,511
http://statistics.data.gov.uk/id/local-authority/12UE,Huntingdonshire District Council,20/08/2015,173379,42001202 R7,5,1425.6,Imtech Aqua Maintenance Ltd,CR422225,Helpdesk,Equipment Maintenance,511
http://statistics.data.gov.uk/id/local-authority/12UE,Huntingdonshire District Council,20/08/2015,173389,42001203 R7,5,347.76,Imtech Aqua Maintenance Ltd,CR422225,Helpdesk,Equipment Maintenance,511
http://statistics.data.gov.uk/id/local-authority/12UE,Huntingdonshire District Council,06/08/2015,173031,72705,5,1256.05,Servicesport (Uk) Ltd,CR422867,One Leisure Huntingdon,Equipment Maintenance,511
http://statistics.data.gov.uk/id/local-authority/12UE,Huntingdonshire District Council,13/08/2015,173740,INV001444,5,1250,Lynx Bowling Services,CR455532,One Leisure St Ives,Equipment Maintenance,511
http://statistics.data.gov.uk/id/local-authority/12UE,Huntingdonshire District Council,06/08/2015,173027,72680,5,589.21,Servicesport (Uk) Ltd,CR422867,One Leisure St Ives,Equipment Maintenance,511
http://statistics.data.gov.uk/id/local-authority/12UE,Huntingdonshire District Council,13/08/2015,172867,1320,5,1231.2,Bibby Factors Leicester Ltd,CR480417,One Leisure St Neots,Equipment Maintenance,511
http://statistics.data.gov.uk/id/local-authority/12UE,Huntingdonshire District Council,06/08/2015,172411,AR-654000025,5,313.87,Gantner Electronics Ltd,CR479042,One Leisure St Neots,Equipment Maintenance,511
http://statistics.data.gov.uk/id/local-authority/12UE,Huntingdonshire District Council,20/08/2015,173434,GM11978,5,430.3,Garner Medical Ltd,CR003972,One Leisure St Neots,Equipment Maintenance,511
http://statistics.data.gov.uk/id/local-authority/12UE,Huntingdonshire District Council,06/08/2015,173753,HDC2015-03,5,1812,Kelsall Consultancy Ltd,CR422497,Housing Associations,Funerals And Graves,717
http://statistics.data.gov.uk/id/local-authority/12UE,Huntingdonshire District Council,27/08/2015,173754,HDC2015-04,5,2896.8,Kelsall Consultancy Ltd,CR422497,Housing Associations,Funerals And Graves,717
http://statistics.data.gov.uk/id/local-authority/12UE,Huntingdonshire District Council,13/08/2015,174012,12489089940,5,282.25,E-On Energy,CR416430,E F H And Depots,Gas,421
http://statistics.data.gov.uk/id/local-authority/12UE,Huntingdonshire District Council,13/08/2015,174019,12489088110,5,4112.74,E-On Energy,CR416430,One Leisure Huntingdon,Gas,421
http://statistics.data.gov.uk/id/local-authority/12UE,Huntingdonshire District Council,13/08/2015,174015,12489088970,5,625.32,E-On Energy,CR416430,One Leisure Huntingdon,Gas,421
http://statistics.data.gov.uk/id/local-authority/12UE,Huntingdonshire District Council,13/08/2015,174011,12489090790,5,1044,E-On Energy,CR416430,One Leisure Ramsey,Gas,421
http://statistics.data.gov.uk/id/local-authority/12UE,Huntingdonshire District Council,13/08/2015,174016,12489088700,5,1707.77,E-On Energy,CR416430,One Leisure Sawtry,Gas,421
http://statistics.data.gov.uk/id/local-authority/12UE,Huntingdonshire District Council,13/08/2015,174013,12489089510,5,361.02,E-On Energy,CR416430,One Leisure St Ives,Gas,421
http://statistics.data.gov.uk/id/local-authority/12UE,Huntingdonshire District Council,13/08/2015,174010,12489090950,5,4842.28,E-On Energy,CR416430,One Leisure St Ives,Gas,421
http://statistics.data.gov.uk/id/local-authority/12UE,Huntingdonshire District Council,13/08/2015,174018,12489088380,5,3073.36,E-On Energy,CR416430,One Leisure St Neots,Gas,421
http://statistics.data.gov.uk/id/local-authority/12UE,Huntingdonshire District Council,13/08/2015,174017,12489088540,5,304.43,E-On Energy,CR416430,One Leisure St Neots,Gas,421
http://statistics.data.gov.uk/id/local-authority/12UE,Huntingdonshire District Council,13/08/2015,174009,13313569100,5,293.06,E-On Energy,CR416430,Pathfinder House Site,Gas,421
http://statistics.data.gov.uk/id/local-authority/12UE,Huntingdonshire District Council,13/08/2015,172796,567425,5,55.86,Lacons,CR422174,One Leisure St Ives,Gas Cylinders (Incl. Bars),567
http://statistics.data.gov.uk/id/local-authority/12UE,Huntingdonshire District Council,13/08/2015,173605,569488,5,18.23,Lacons,CR422174,One Leisure St Ives,Gas Cylinders (Incl. Bars),567
http://statistics.data.gov.uk/id/local-authority/12UE,Huntingdonshire District Council,13/08/2015,173606,569561,5,18.23,Lacons,CR422174,One Leisure St Ives,Gas Cylinders (Incl. Bars),567
http://statistics.data.gov.uk/id/local-authority/12UE,Huntingdonshire District Council,27/08/2015,173693,1206,5,906,Universal Safety Systems Ltd,CR478208,E F H And Depots,Gen Building Mtce - Planned,304
http://statistics.data.gov.uk/id/local-authority/12UE,Huntingdonshire District Council,06/08/2015,172582,53350,5,755.1,Maskearaid Ind Supplies,CR033423,Pathfinder House Site,Gen Building Mtce - Planned,304
http://statistics.data.gov.uk/id/local-authority/12UE,Huntingdonshire District Council,27/08/2015,173692,1205,5,462,Universal Safety Systems Ltd,CR478208,Pathfinder House Site,Gen Building Mtce - Planned,304
http://statistics.data.gov.uk/id/local-authority/12UE,Huntingdonshire District Council,27/08/2015,585007,,4,600,Bluntisham Allotment & Leisure Gardeners Asso,CR422080,Miscellaneous Grants,Grants (Paid Out),800
http://statistics.data.gov.uk/id/local-authority/12UE,Huntingdonshire District Council,27/08/2015,585005,,4,1250,Covington Amenities Committee,CR422093,Miscellaneous Grants,Grants (Paid Out),800
http://statistics.data.gov.uk/id/local-authority/12UE,Huntingdonshire District Council,13/08/2015,585013,COMM GRANT,4,2000,Eaton Socon Cricket Club,CR422087,Miscellaneous Grants,Grants (Paid Out),800
http://statistics.data.gov.uk/id/local-authority/12UE,Huntingdonshire District Council,13/08/2015,585012,COMM GRANT,1,1500,St Ives Town Council,CR000701,Miscellaneous Grants,Grants (Paid Out),800
http://statistics.data.gov.uk/id/local-authority/12UE,Huntingdonshire District Council,13/08/2015,585006,,4,5000,St Neots Lawn Tennis Club,CR422094,Miscellaneous Grants,Grants (Paid Out),800
http://statistics.data.gov.uk/id/local-authority/12UE,Huntingdonshire District Council,13/08/2015,585004,,4,3400,Wheatfields Nursery School,CR422090,Miscellaneous Grants,Grants (Paid Out),800
http://statistics.data.gov.uk/id/local-authority/12UE,Huntingdonshire District Council,20/08/2015,174511,3080106,5,1504.72,Venn Group Recruitment,CR415403,Central Services M Us,Hired Staff,100
http://statistics.data.gov.uk/id/local-authority/12UE,Huntingdonshire District Council,20/08/2015,174512,3082417,5,1504.72,Venn Group Recruitment,CR415403,Central Services M Us,Hired Staff,100
http://statistics.data.gov.uk/id/local-authority/12UE,Huntingdonshire District Council,20/08/2015,173976,3084708,5,1504.72,Venn Group Recruitment,CR415403,Central Services M Us,Hired Staff,100
http://statistics.data.gov.uk/id/local-authority/12UE,Huntingdonshire District Council,27/08/2015,173977,3087057,5,1504.72,Venn Group Recruitment,CR415403,Central Services M Us,Hired Staff,100
http://statistics.data.gov.uk/id/local-authority/12UE,Huntingdonshire District Council,06/08/2015,172926,4000002735,5,342,1st Choice Recruitment,CR416849,Countryside,Hired Staff,100
http://statistics.data.gov.uk/id/local-authority/12UE,Huntingdonshire District Council,13/08/2015,173780,4000002777,5,342,1st Choice Recruitment,CR416849,Countryside,Hired Staff,100
http://statistics.data.gov.uk/id/local-authority/12UE,Huntingdonshire District Council,20/08/2015,173779,4000002798,5,342,1st Choice Recruitment,CR416849,Countryside,Hired Staff,100
http://statistics.data.gov.uk/id/local-authority/12UE,Huntingdonshire District Council,06/08/2015,172963,IN0450095,5,4278.1,Staffline Group,CR416827,Domestic Refuse,Hired Staff,100
http://statistics.data.gov.uk/id/local-authority/12UE,Huntingdonshire District Council,06/08/2015,172965,IN0450096,5,3727.66,Staffline Group,CR416827,Domestic Refuse,Hired Staff,100
http://statistics.data.gov.uk/id/local-authority/12UE,Huntingdonshire District Council,06/08/2015,172962,IN0450653,5,4206.68,Staffline Group,CR416827,Domestic Refuse,Hired Staff,100
http://statistics.data.gov.uk/id/local-authority/12UE,Huntingdonshire District Council,06/08/2015,172964,IN0450654,5,3132.42,Staffline Group,CR416827,Domestic Refuse,Hired Staff,100
http://statistics.data.gov.uk/id/local-authority/12UE,Huntingdonshire District Council,13/08/2015,173297,IN0451909,5,4202.47,Staffline Group,CR416827,Domestic Refuse,Hired Staff,100
http://statistics.data.gov.uk/id/local-authority/12UE,Huntingdonshire District Council,13/08/2015,173292,IN0451911,5,2782.26,Staffline Group,CR416827,Domestic Refuse,Hired Staff,100
http://statistics.data.gov.uk/id/local-authority/12UE,Huntingdonshire District Council,20/08/2015,174083,IN0453335,5,3735.11,Staffline Group,CR416827,Domestic Refuse,Hired Staff,100
http://statistics.data.gov.uk/id/local-authority/12UE,Huntingdonshire District Council,20/08/2015,174081,IN0453337,5,2964.98,Staffline Group,CR416827,Domestic Refuse,Hired Staff,100
http://statistics.data.gov.uk/id/local-authority/12UE,Huntingdonshire District Council,27/08/2015,174098,IN0455269,5,3607.69,Staffline Group,CR416827,Domestic Refuse,Hired Staff,100
http://statistics.data.gov.uk/id/local-authority/12UE,Huntingdonshire District Council,27/08/2015,174094,IN0455271,5,3075.74,Staffline Group,CR416827,Domestic Refuse,Hired Staff,100
http://statistics.data.gov.uk/id/local-authority/12UE,Huntingdonshire District Council,06/08/2015,173718,1069107,5,1153.98,The Oyster Partnership,CR480450,Environmental Management,Hired Staff,100
http://statistics.data.gov.uk/id/local-authority/12UE,Huntingdonshire District Council,06/08/2015,172830,1069985,5,1141.02,The Oyster Partnership,CR480450,Environmental Management,Hired Staff,100
http://statistics.data.gov.uk/id/local-authority/12UE,Huntingdonshire District Council,13/08/2015,172981,1070267,5,1513.98,The Oyster Partnership,CR480450,Environmental Management,Hired Staff,100
http://statistics.data.gov.uk/id/local-authority/12UE,Huntingdonshire District Council,20/08/2015,173313,BC00116,5,3780,Barry Cornelius Associates,CR422523,Financial Services Mus,Hired Staff,100
http://statistics.data.gov.uk/id/local-authority/12UE,Huntingdonshire District Council,20/08/2015,174070,INV1585630,5,621.6,Interaction Recruitment Plc,CR007892,Financial Services Mus,Hired Staff,100
http://statistics.data.gov.uk/id/local-authority/12UE,Huntingdonshire District Council,27/08/2015,174069,INV1587492,5,604.8,Interaction Recruitment Plc,CR007892,Financial Services Mus,Hired Staff,100
http://statistics.data.gov.uk/id/local-authority/12UE,Huntingdonshire District Council,13/08/2015,173295,IN0451910,5,627.98,Staffline Group,CR416827,Grounds Maintenance,Hired Staff,100
http://statistics.data.gov.uk/id/local-authority/12UE,Huntingdonshire District Council,20/08/2015,174082,IN0453336,5,768.6,Staffline Group,CR416827,Grounds Maintenance,Hired Staff,100
http://statistics.data.gov.uk/id/local-authority/12UE,Huntingdonshire District Council,27/08/2015,174096,IN0455270,5,627.98,Staffline Group,CR416827,Grounds Maintenance,Hired Staff,100
http://statistics.data.gov.uk/id/local-authority/12UE,Huntingdonshire District Council,13/08/2015,172969,IP0000255,5,6356.92,Staffline Group,CR416827,Grounds Maintenance,Hired Staff,100
http://statistics.data.gov.uk/id/local-authority/12UE,Huntingdonshire District Council,27/08/2015,174108,31-Jul-15,5,3517.5,Edrm Systems Ltd,CR416278,Helpdesk,Hired Staff,100
http://statistics.data.gov.uk/id/local-authority/12UE,Huntingdonshire District Council,06/08/2015,172209,R0007843,5,1320,Premier It Recruitment Ltd,CR454029,Helpdesk,Hired Staff,100
http://statistics.data.gov.uk/id/local-authority/12UE,Huntingdonshire District Council,06/08/2015,172212,R007840,5,1320,Premier It Recruitment Ltd,CR454029,Helpdesk,Hired Staff,100
http://statistics.data.gov.uk/id/local-authority/12UE,Huntingdonshire District Council,06/08/2015,172210,R007841,5,1320,Premier It Recruitment Ltd,CR454029,Helpdesk,Hired Staff,100
http://statistics.data.gov.uk/id/local-authority/12UE,Huntingdonshire District Council,06/08/2015,172211,R007842,5,1320,Premier It Recruitment Ltd,CR454029,Helpdesk,Hired Staff,100
http://statistics.data.gov.uk/id/local-authority/12UE,Huntingdonshire District Council,13/08/2015,173042,R008011,5,1320,Premier It Recruitment Ltd,CR454029,Helpdesk,Hired Staff,100
http://statistics.data.gov.uk/id/local-authority/12UE,Huntingdonshire District Council,20/08/2015,173041,R008199,5,1320,Premier It Recruitment Ltd,CR454029,Helpdesk,Hired Staff,100
http://statistics.data.gov.uk/id/local-authority/12UE,Huntingdonshire District Council,20/08/2015,173040,R008200,5,1320,Premier It Recruitment Ltd,CR454029,Helpdesk,Hired Staff,100
http://statistics.data.gov.uk/id/local-authority/12UE,Huntingdonshire District Council,20/08/2015,173039,R008201,5,792,Premier It Recruitment Ltd,CR454029,Helpdesk,Hired Staff,100
http://statistics.data.gov.uk/id/local-authority/12UE,Huntingdonshire District Council,20/08/2015,173037,R008202,5,1320,Premier It Recruitment Ltd,CR454029,Helpdesk,Hired Staff,100
http://statistics.data.gov.uk/id/local-authority/12UE,Huntingdonshire District Council,27/08/2015,173388,R008249,5,1320,Premier It Recruitment Ltd,CR454029,Helpdesk,Hired Staff,100
http://statistics.data.gov.uk/id/local-authority/12UE,Huntingdonshire District Council,27/08/2015,173387,R008250,5,1056,Premier It Recruitment Ltd,CR454029,Helpdesk,Hired Staff,100
http://statistics.data.gov.uk/id/local-authority/12UE,Huntingdonshire District Council,27/08/2015,173385,R008251,5,1320,Premier It Recruitment Ltd,CR454029,Helpdesk,Hired Staff,100
http://statistics.data.gov.uk/id/local-authority/12UE,Huntingdonshire District Council,27/08/2015,173384,R008252,5,1320,Premier It Recruitment Ltd,CR454029,Helpdesk,Hired Staff,100
http://statistics.data.gov.uk/id/local-authority/12UE,Huntingdonshire District Council,27/08/2015,173729,R008356,5,1320,Premier It Recruitment Ltd,CR454029,Helpdesk,Hired Staff,100
http://statistics.data.gov.uk/id/local-authority/12UE,Huntingdonshire District Council,27/08/2015,173723,R008377,5,1320,Premier It Recruitment Ltd,CR454029,Helpdesk,Hired Staff,100
http://statistics.data.gov.uk/id/local-authority/12UE,Huntingdonshire District Council,27/08/2015,173727,R008378,5,1320,Premier It Recruitment Ltd,CR454029,Helpdesk,Hired Staff,100
http://statistics.data.gov.uk/id/local-authority/12UE,Huntingdonshire District Council,27/08/2015,174677,3093947,5,1332,Venn Group Recruitment,CR415403,Housing  Benefits Admin,Hired Staff,100
http://statistics.data.gov.uk/id/local-authority/12UE,Huntingdonshire District Council,13/08/2015,174095,10490,5,490.62,Lightning Recruitment,CR028184,Information Manager,Hired Staff,100
http://statistics.data.gov.uk/id/local-authority/12UE,Huntingdonshire District Council,13/08/2015,174097,10538,5,490.62,Lightning Recruitment,CR028184,Information Manager,Hired Staff,100
http://statistics.data.gov.uk/id/local-authority/12UE,Huntingdonshire District Council,13/08/2015,174101,10585,5,511.86,Lightning Recruitment,CR028184,Information Manager,Hired Staff,100
http://statistics.data.gov.uk/id/local-authority/12UE,Huntingdonshire District Council,27/08/2015,174861,10676,5,521.26,Lightning Recruitment,CR028184,Information Manager,Hired Staff,100
http://statistics.data.gov.uk/id/local-authority/12UE,Huntingdonshire District Council,06/08/2015,172961,IN0450094,5,2144.68,Staffline Group,CR416827,Recycling,Hired Staff,100
http://statistics.data.gov.uk/id/local-authority/12UE,Huntingdonshire District Council,06/08/2015,172960,IN0450652,5,3130.67,Staffline Group,CR416827,Recycling,Hired Staff,100
http://statistics.data.gov.uk/id/local-authority/12UE,Huntingdonshire District Council,13/08/2015,173296,IN0451908,5,2107.91,Staffline Group,CR416827,Recycling,Hired Staff,100
http://statistics.data.gov.uk/id/local-authority/12UE,Huntingdonshire District Council,20/08/2015,174086,IN0453334,5,2587.55,Staffline Group,CR416827,Recycling,Hired Staff,100
http://statistics.data.gov.uk/id/local-authority/12UE,Huntingdonshire District Council,27/08/2015,174099,IN0455268,5,2866.73,Staffline Group,CR416827,Recycling,Hired Staff,100
http://statistics.data.gov.uk/id/local-authority/12UE,Huntingdonshire District Council,06/08/2015,172966,IN0450097,5,759.7,Staffline Group,CR416827,Street Cleaning,Hired Staff,100
http://statistics.data.gov.uk/id/local-authority/12UE,Huntingdonshire District Council,06/08/2015,172968,IN0450098,5,967.98,Staffline Group,CR416827,Street Cleaning,Hired Staff,100
http://statistics.data.gov.uk/id/local-authority/12UE,Huntingdonshire District Council,06/08/2015,172959,IN0450655,5,508.37,Staffline Group,CR416827,Street Cleaning,Hired Staff,100
http://statistics.data.gov.uk/id/local-authority/12UE,Huntingdonshire District Council,06/08/2015,172967,IN0450656,5,1077.14,Staffline Group,CR416827,Street Cleaning,Hired Staff,100
http://statistics.data.gov.uk/id/local-authority/12UE,Huntingdonshire District Council,13/08/2015,173293,IN0451912,5,1046.03,Staffline Group,CR416827,Street Cleaning,Hired Staff,100
http://statistics.data.gov.uk/id/local-authority/12UE,Huntingdonshire District Council,13/08/2015,173294,IN0451913,5,538.57,Staffline Group,CR416827,Street Cleaning,Hired Staff,100
http://statistics.data.gov.uk/id/local-authority/12UE,Huntingdonshire District Council,20/08/2015,174078,IN0453338,5,908.98,Staffline Group,CR416827,Street Cleaning,Hired Staff,100
http://statistics.data.gov.uk/id/local-authority/12UE,Huntingdonshire District Council,20/08/2015,174077,IN0453339,5,545.86,Staffline Group,CR416827,Street Cleaning,Hired Staff,100
http://statistics.data.gov.uk/id/local-authority/12UE,Huntingdonshire District Council,27/08/2015,174093,IN0455272,5,834.72,Staffline Group,CR416827,Street Cleaning,Hired Staff,100
http://statistics.data.gov.uk/id/local-authority/12UE,Huntingdonshire District Council,27/08/2015,174090,IN0455273,5,1077.14,Staffline Group,CR416827,Street Cleaning,Hired Staff,100
http://statistics.data.gov.uk/id/local-authority/12UE,Huntingdonshire District Council,06/08/2015,169073,3021388,5,18436,Metropolitan Housing Trust Ltd,CR487206,Hostel Support-Closed-Use Hh01,Hostel Revenue Support,817
http://statistics.data.gov.uk/id/local-authority/12UE,Huntingdonshire District Council,13/08/2015,173376,ARBK/99034976,5,3510,Advanced Business Solutions,CR032921,Helpdesk,I C T Services,731
http://statistics.data.gov.uk/id/local-authority/12UE,Huntingdonshire District Council,27/08/2015,173746,SIN095271,5,24510,Eacs Ltd,CR404499,Helpdesk,I C T Services,731
http://statistics.data.gov.uk/id/local-authority/12UE,Huntingdonshire District Council,20/08/2015,173707,QLA19H006-0013-,5,547.36,Zurich Municipal,CR477397,Customer Service Centres,Ins (Service Related),260
http://statistics.data.gov.uk/id/local-authority/12UE,Huntingdonshire District Council,20/08/2015,173707,QLA19H006-0013-,5,265,Zurich Municipal,CR477397,Industrial Properties,Ins (Service Related),260
http://statistics.data.gov.uk/id/local-authority/12UE,Huntingdonshire District Council,20/08/2015,173710,,5,33850.81,Zurich Municipal,CR477397,Industrial Properties,Ins (Service Related),260
http://statistics.data.gov.uk/id/local-authority/12UE,Huntingdonshire District Council,20/08/2015,173706,EI19H006-0017,5,16876.03,Zurich Municipal,CR477397,Insurance Premium Holding,Ins (Service Related),260
http://statistics.data.gov.uk/id/local-authority/12UE,Huntingdonshire District Council,20/08/2015,173707,QLA19H006-0013-,5,357.07,Zurich Municipal,CR477397,Insurance Premium Holding,Ins (Service Related),260
http://statistics.data.gov.uk/id/local-authority/12UE,Huntingdonshire District Council,20/08/2015,173707,QLA19H006-0013-,5,7332.44,Zurich Municipal,CR477397,Land Charges,Ins (Service Related),260
http://statistics.data.gov.uk/id/local-authority/12UE,Huntingdonshire District Council,27/08/2015,173623,GW15095F,5,420,Grafham Water Centre,CR416894,Leisure Development,Instructors/Tutors,720
http://statistics.data.gov.uk/id/local-authority/12UE,Huntingdonshire District Council,27/08/2015,174374,GW15102F,5,374,Grafham Water Centre,CR416894,Leisure Development,Instructors/Tutors,720
http://statistics.data.gov.uk/id/local-authority/12UE,Huntingdonshire District Council,06/08/2015,172803,11,5,741.66,Paxton Lakes Sailing Club,CR406534,Leisure Development,Instructors/Tutors,720
http://statistics.data.gov.uk/id/local-authority/12UE,Huntingdonshire District Council,13/08/2015,173720,INV-2332,5,320,Xtreme Soccer Zorb Football Limited,CR422098,One Leisure Ramsey,Instructors/Tutors,720
http://statistics.data.gov.uk/id/local-authority/12UE,Huntingdonshire District Council,27/08/2015,174470,CRICKET COACHIN,5,300,Alex Tudor Cricket Coaching,CR422125,One Leisure St Neots,Instructors/Tutors,720
http://statistics.data.gov.uk/id/local-authority/12UE,Huntingdonshire District Council,20/08/2015,173707,QLA19H006-0013-,5,43609.46,Zurich Municipal,CR477397,Insurance Premium Holding,Insurance Employers,162
http://statistics.data.gov.uk/id/local-authority/12UE,Huntingdonshire District Council,06/08/2015,173663,CE003207,5,4608.88,Jlt Speciality Ltd,CR480345,Insurance Premium Holding,Insurance Fidelity Guarantee,166
http://statistics.data.gov.uk/id/local-authority/12UE,Huntingdonshire District Council,20/08/2015,173707,QLA19H006-0013-,5,1431,Zurich Municipal,CR477397,Insurance Premium Holding,Insurance Libel,167
http://statistics.data.gov.uk/id/local-authority/12UE,Huntingdonshire District Council,20/08/2015,173707,QLA19H006-0013-,5,7054.97,Zurich Municipal,CR477397,Insurance Premium Holding,Insurance Officials Indemnity,168
http://statistics.data.gov.uk/id/local-authority/12UE,Huntingdonshire District Council,06/08/2015,173664,CE03205,5,3280.25,Jlt Speciality Ltd,CR480345,Insurance Premium Holding,Insurance Personal Accident,161
http://statistics.data.gov.uk/id/local-authority/12UE,Huntingdonshire District Council,20/08/2015,173707,QLA19H006-0013-,5,161118.11,Zurich Municipal,CR477397,Insurance Premium Holding,Insurance Public Liability,160
http://statistics.data.gov.uk/id/local-authority/12UE,Huntingdonshire District Council,18/08/2015,585300,COURT FEE,5,300,Hmcts,CR030090,Central Services M Us,Legal Fees,729
http://statistics.data.gov.uk/id/local-authority/12UE,Huntingdonshire District Council,20/08/2015,173278,9937514,5,431.88,Snr Denton,CR453969,Dc Application Processing,Legal Fees,729
http://statistics.data.gov.uk/id/local-authority/12UE,Huntingdonshire District Council,27/08/2015,173823,90173209,5,1208.2,Freeth Cartwright Llp,CR480787,Estates Properties Capital,Legal Fees,729
http://statistics.data.gov.uk/id/local-authority/12UE,Huntingdonshire District Council,11/08/2015,584670,L/SD/1546 WINDI,5,1530,Hmcts,CR030090,N N D R Administration,Legal Fees,729
http://statistics.data.gov.uk/id/local-authority/12UE,Huntingdonshire District Council,13/08/2015,174181,139922,5,264,Cambridgeshire Chamber Of Commerce,CR411674,One Leisure St Ives,Licences,730
http://statistics.data.gov.uk/id/local-authority/12UE,Huntingdonshire District Council,13/08/2015,174170,18909,5,1562.4,King Street Housing Society,CR409301,Accommodation For Homeless,Management Charge,733
http://statistics.data.gov.uk/id/local-authority/12UE,Huntingdonshire District Council,20/08/2015,173315,DIHH/00002867,5,6940.2,Luminus Homes,CR401276,Housing Services Other,Management Charge,733
http://statistics.data.gov.uk/id/local-authority/12UE,Huntingdonshire District Council,27/08/2015,174710,0000400089HDCX,5,450,Allpay Net Ltd,CR479151,Customer Service Centres,Materials,550
http://statistics.data.gov.uk/id/local-authority/12UE,Huntingdonshire District Council,13/08/2015,173411,9501,5,57.6,I D Direct,CR415011,Document Centre,Materials,550
http://statistics.data.gov.uk/id/local-authority/12UE,Huntingdonshire District Council,13/08/2015,173411,9501,5,280.8,I D Direct,CR415011,Document Centre,Materials,550
http://statistics.data.gov.uk/id/local-authority/12UE,Huntingdonshire District Council,20/08/2015,173343,SN2159538,5,475.68,Berendsen,CR478298,Fleet Management,Materials,550
http://statistics.data.gov.uk/id/local-authority/12UE,Huntingdonshire District Council,27/08/2015,174442,EI554522,5,846.37,United Eco Services Ltd,CR477773,Fleet Management,Materials,550
http://statistics.data.gov.uk/id/local-authority/12UE,Huntingdonshire District Council,13/08/2015,174113,371909,5,6,South Lincs Food Service,CR033415,One Leisure Huntingdon,Materials,550
http://statistics.data.gov.uk/id/local-authority/12UE,Huntingdonshire District Council,13/08/2015,173364,2102099291,5,6.7,Booker Cash And Carry,CR027611,One Leisure Sawtry,Materials,550
http://statistics.data.gov.uk/id/local-authority/12UE,Huntingdonshire District Council,06/08/2015,172904,2102088570,5,177.46,Booker Cash And Carry,CR027611,One Leisure St Ives,Materials,550
http://statistics.data.gov.uk/id/local-authority/12UE,Huntingdonshire District Council,06/08/2015,172984,2102088665,5,110.29,Booker Cash And Carry,CR027611,One Leisure St Ives,Materials,550
http://statistics.data.gov.uk/id/local-authority/12UE,Huntingdonshire District Council,13/08/2015,173239,2102098672,5,161.89,Booker Cash And Carry,CR027611,One Leisure St Ives,Materials,550
http://statistics.data.gov.uk/id/local-authority/12UE,Huntingdonshire District Council,13/08/2015,173635,2102106877,5,99.53,Booker Cash And Carry,CR027611,One Leisure St Ives,Materials,550
http://statistics.data.gov.uk/id/local-authority/12UE,Huntingdonshire District Council,20/08/2015,174522,4101,5,250,Border Studio,CR402068,One Leisure St Ives,Materials,550
http://statistics.data.gov.uk/id/local-authority/12UE,Huntingdonshire District Council,20/08/2015,174464,53294,5,438,Pushback Ltd,CR481001,One Leisure St Ives,Materials,550
http://statistics.data.gov.uk/id/local-authority/12UE,Huntingdonshire District Council,20/08/2015,173393,INV020968,5,55.92,Slush Puppie Ltd,CR455958,One Leisure St Ives,Materials,550
http://statistics.data.gov.uk/id/local-authority/12UE,Huntingdonshire District Council,13/08/2015,172885,365226,5,50.62,South Lincs Food Service,CR033415,One Leisure St Ives,Materials,550
http://statistics.data.gov.uk/id/local-authority/12UE,Huntingdonshire District Council,27/08/2015,173704,256695,5,21.6,Westminster Foodservice,CR455156,One Leisure St Ives,Materials,550
http://statistics.data.gov.uk/id/local-authority/12UE,Huntingdonshire District Council,13/08/2015,585027,STAFF,2,44.17,REDACTED PERSONAL DATA,CR025614,Countryside,Materials For Resale,570
http://statistics.data.gov.uk/id/local-authority/12UE,Huntingdonshire District Council,27/08/2015,173604,92016341,5,842.12,Speedo International Limited,CR41427,One Leisure Huntingdon,Materials For Resale,570
http://statistics.data.gov.uk/id/local-authority/12UE,Huntingdonshire District Council,06/08/2015,172531,92000894,5,703.66,Speedo International Limited,CR41427,One Leisure St Ives,Materials For Resale,570
http://statistics.data.gov.uk/id/local-authority/12UE,Huntingdonshire District Council,13/08/2015,173071,92009252,5,693.04,Speedo International Limited,CR41427,One Leisure St Neots,Materials For Resale,570
http://statistics.data.gov.uk/id/local-authority/12UE,Huntingdonshire District Council,20/08/2015,173392,76896732,5,71.54,Vodafone Limited,CR029120,Chief Executive & Comt,Mobile Telephones & Radios,241
http://statistics.data.gov.uk/id/local-authority/12UE,Huntingdonshire District Council,20/08/2015,173795,B3121310,5,1741.25,Bemrose Mobile Ltd,CR422668,Off Street Parking,Mobile Telephones & Radios,241
http://statistics.data.gov.uk/id/local-authority/12UE,Huntingdonshire District Council,20/08/2015,173392,76896732,5,267.3,Vodafone Limited,CR029120,Off Street Parking,Mobile Telephones & Radios,241
http://statistics.data.gov.uk/id/local-authority/12UE,Huntingdonshire District Council,06/08/2015,172542,S151274,5,1921.82,Chipside,CR479533,Off Street Parking,Other I T Hardware,203
http://statistics.data.gov.uk/id/local-authority/12UE,Huntingdonshire District Council,27/08/2015,174713,10632300,5,15264,Cambridgeshire County Council,CR006678,Land Charges,Other Office Expenses,295
http://statistics.data.gov.uk/id/local-authority/12UE,Huntingdonshire District Council,06/08/2015,172635,4969790,5,90.61,Antalis Ltd,CR479468,Document Centre,Paper,562
http://statistics.data.gov.uk/id/local-authority/12UE,Huntingdonshire District Council,06/08/2015,172635,4969790,5,58.32,Antalis Ltd,CR479468,Document Centre,Paper,562
http://statistics.data.gov.uk/id/local-authority/12UE,Huntingdonshire District Council,06/08/2015,172635,4969790,5,57.48,Antalis Ltd,CR479468,Document Centre,Paper,562
http://statistics.data.gov.uk/id/local-authority/12UE,Huntingdonshire District Council,06/08/2015,172635,4969790,5,530.4,Antalis Ltd,CR479468,Document Centre,Paper,562
http://statistics.data.gov.uk/id/local-authority/12UE,Huntingdonshire District Council,06/08/2015,172635,4969790,5,96.48,Antalis Ltd,CR479468,Document Centre,Paper,562
http://statistics.data.gov.uk/id/local-authority/12UE,Huntingdonshire District Council,13/08/2015,173062,4990020,5,77.26,Antalis Ltd,CR479468,Document Centre,Paper,562
http://statistics.data.gov.uk/id/local-authority/12UE,Huntingdonshire District Council,13/08/2015,173062,4990020,5,87.34,Antalis Ltd,CR479468,Document Centre,Paper,562
http://statistics.data.gov.uk/id/local-authority/12UE,Huntingdonshire District Council,13/08/2015,173062,4990020,5,56.58,Antalis Ltd,CR479468,Document Centre,Paper,562
http://statistics.data.gov.uk/id/local-authority/12UE,Huntingdonshire District Council,13/08/2015,173062,4990020,5,49.72,Antalis Ltd,CR479468,Document Centre,Paper,562
http://statistics.data.gov.uk/id/local-authority/12UE,Huntingdonshire District Council,13/08/2015,173062,4990020,5,176.4,Antalis Ltd,CR479468,Document Centre,Paper,562
http://statistics.data.gov.uk/id/local-authority/12UE,Huntingdonshire District Council,27/08/2015,174188,5028984,5,55.2,Antalis Ltd,CR479468,Document Centre,Paper,562
http://statistics.data.gov.uk/id/local-authority/12UE,Huntingdonshire District Council,27/08/2015,174188,5028984,5,530.4,Antalis Ltd,CR479468,Document Centre,Paper,562
http://statistics.data.gov.uk/id/local-authority/12UE,Huntingdonshire District Council,27/08/2015,174188,5028984,5,98.4,Antalis Ltd,CR479468,Document Centre,Paper,562
http://statistics.data.gov.uk/id/local-authority/12UE,Huntingdonshire District Council,27/08/2015,174188,5028984,5,98.4,Antalis Ltd,CR479468,Document Centre,Paper,562
http://statistics.data.gov.uk/id/local-authority/12UE,Huntingdonshire District Council,27/08/2015,174188,5028984,5,32.16,Antalis Ltd,CR479468,Document Centre,Paper,562
http://statistics.data.gov.uk/id/local-authority/12UE,Huntingdonshire District Council,27/08/2015,174188,5028984,5,64.32,Antalis Ltd,CR479468,Document Centre,Paper,562
http://statistics.data.gov.uk/id/local-authority/12UE,Huntingdonshire District Council,27/08/2015,174204,10302181,5,504,Moore Paragon Uk Limited Pss,CR030863,Document Centre,Paper,562
http://statistics.data.gov.uk/id/local-authority/12UE,Huntingdonshire District Council,27/08/2015,174830,10718567,5,66.19,Euramka Promotions Ltd,CR001864,Grounds Maintenance,Petrol,614
http://statistics.data.gov.uk/id/local-authority/12UE,Huntingdonshire District Council,27/08/2015,174788,S04542111,5,309.31,Shell Uk Ltd,CR028192,Grounds Maintenance,Petrol,614
http://statistics.data.gov.uk/id/local-authority/12UE,Huntingdonshire District Council,20/08/2015,172993,3069924,5,265.87,First In Service Ltd,CR422285,One Leisure Huntingdon,Plant & Equipment Maintenance,380
http://statistics.data.gov.uk/id/local-authority/12UE,Huntingdonshire District Council,27/08/2015,173372,423763,5,583.7,Heasell Electromechanical Services Ltd,CR422407,One Leisure Huntingdon,Plant & Equipment Maintenance,380
http://statistics.data.gov.uk/id/local-authority/12UE,Huntingdonshire District Council,27/08/2015,173607,423825,5,1778.23,Heasell Electromechanical Services Ltd,CR422407,One Leisure Huntingdon,Plant & Equipment Maintenance,380
http://statistics.data.gov.uk/id/local-authority/12UE,Huntingdonshire District Council,20/08/2015,172992,3069782,5,1044,First In Service Ltd,CR422285,One Leisure Ramsey,Plant & Equipment Maintenance,380
http://statistics.data.gov.uk/id/local-authority/12UE,Huntingdonshire District Council,13/08/2015,172630,3068724,5,1002,First In Service Ltd,CR422285,One Leisure St Ives,Plant & Equipment Maintenance,380
http://statistics.data.gov.uk/id/local-authority/12UE,Huntingdonshire District Council,27/08/2015,173621,373,5,1158,Flexerefrigeration Ltd,CR422336,One Leisure St Ives,Plant & Equipment Maintenance,380
http://statistics.data.gov.uk/id/local-authority/12UE,Huntingdonshire District Council,13/08/2015,173740,INV001444,5,738,Lynx Bowling Services,CR455532,One Leisure St Ives,Plant & Equipment Maintenance,380
http://statistics.data.gov.uk/id/local-authority/12UE,Huntingdonshire District Council,27/08/2015,174474,3723,5,1074,Monowa Operable Wall Systems  Ltd,CR455096,Pathfinder House Site,Plant & Equipment Maintenance,380
http://statistics.data.gov.uk/id/local-authority/12UE,Huntingdonshire District Council,13/08/2015,172826,438674,5,3590.53,Zip Heaters Uk Ltd,CR478275,Pathfinder House Site,Plant & Equipment Maintenance,380
http://statistics.data.gov.uk/id/local-authority/12UE,Huntingdonshire District Council,13/08/2015,174207,CHES238,5,4500,Hampton/Chesmetalwork,CR453817,Parks & Open Spaces,Playground Equipment,360
http://statistics.data.gov.uk/id/local-authority/12UE,Huntingdonshire District Council,13/08/2015,174148,S1217589,5,543.32,Kompan Ltd,CR405497,Parks & Open Spaces,Playground Equipment,360
http://statistics.data.gov.uk/id/local-authority/12UE,Huntingdonshire District Council,13/08/2015,173411,9501,5,9.6,I D Direct,CR415011,Document Centre,Postage,231
http://statistics.data.gov.uk/id/local-authority/12UE,Huntingdonshire District Council,06/08/2015,171206,9049950492,5,1598.49,Royal Mail,CR027083,Document Centre,Postage,231
http://statistics.data.gov.uk/id/local-authority/12UE,Huntingdonshire District Council,06/08/2015,171203,9049950512,5,-4968.83,Royal Mail,CR027083,Document Centre,Postage,231
http://statistics.data.gov.uk/id/local-authority/12UE,Huntingdonshire District Council,06/08/2015,171734,9050033665,5,1275.31,Royal Mail,CR027083,Document Centre,Postage,231
http://statistics.data.gov.uk/id/local-authority/12UE,Huntingdonshire District Council,06/08/2015,172814,9050185391,5,5010.49,Royal Mail,CR027083,Document Centre,Postage,231
http://statistics.data.gov.uk/id/local-authority/12UE,Huntingdonshire District Council,13/08/2015,173253,9050227326,5,4154.29,Royal Mail,CR027083,Document Centre,Postage,231
http://statistics.data.gov.uk/id/local-authority/12UE,Huntingdonshire District Council,20/08/2015,174198,9050274605,5,3499.75,Royal Mail,CR027083,Document Centre,Postage,231
http://statistics.data.gov.uk/id/local-authority/12UE,Huntingdonshire District Council,20/08/2015,174199,9050322874,5,-2977.67,Royal Mail,CR027083,Document Centre,Postage,231
http://statistics.data.gov.uk/id/local-authority/12UE,Huntingdonshire District Council,13/08/2015,174196,9050322881,5,-3559.25,Royal Mail,CR027083,Document Centre,Postage,231
http://statistics.data.gov.uk/id/local-authority/12UE,Huntingdonshire District Council,06/08/2015,172632,IN16PS15004393,5,1623.01,Whistl,CR479965,Document Centre,Postage,231
http://statistics.data.gov.uk/id/local-authority/12UE,Huntingdonshire District Council,13/08/2015,173218,IN16PS15004563,5,956.37,Whistl,CR479965,Document Centre,Postage,231
http://statistics.data.gov.uk/id/local-authority/12UE,Huntingdonshire District Council,20/08/2015,173221,IN16PS15004696,5,841.36,Whistl,CR479965,Document Centre,Postage,231
http://statistics.data.gov.uk/id/local-authority/12UE,Huntingdonshire District Council,27/08/2015,174195,IN16PS15004848,5,1016.99,Whistl,CR479965,Document Centre,Postage,231
http://statistics.data.gov.uk/id/local-authority/12UE,Huntingdonshire District Council,06/08/2015,172632,IN16PS15004393,5,53.65,Whistl,CR479965,Domestic Refuse,Postage,231
http://statistics.data.gov.uk/id/local-authority/12UE,Huntingdonshire District Council,13/08/2015,173218,IN16PS15004563,5,181.28,Whistl,CR479965,Domestic Refuse,Postage,231
http://statistics.data.gov.uk/id/local-authority/12UE,Huntingdonshire District Council,20/08/2015,173221,IN16PS15004696,5,129.68,Whistl,CR479965,Domestic Refuse,Postage,231
http://statistics.data.gov.uk/id/local-authority/12UE,Huntingdonshire District Council,27/08/2015,174195,IN16PS15004848,5,27.23,Whistl,CR479965,Domestic Refuse,Postage,231
http://statistics.data.gov.uk/id/local-authority/12UE,Huntingdonshire District Council,06/08/2015,171206,9049950492,5,-474.39,Royal Mail,CR027083,Elections,Postage,231
http://statistics.data.gov.uk/id/local-authority/12UE,Huntingdonshire District Council,20/08/2015,174199,9050322874,5,504.6,Royal Mail,CR027083,Elections,Postage,231
http://statistics.data.gov.uk/id/local-authority/12UE,Huntingdonshire District Council,27/08/2015,174194,9050335661,5,735.6,Royal Mail,CR027083,Elections,Postage,231
http://statistics.data.gov.uk/id/local-authority/12UE,Huntingdonshire District Council,06/08/2015,171206,9049950492,5,150.82,Royal Mail,CR027083,Electoral Registration,Postage,231
http://statistics.data.gov.uk/id/local-authority/12UE,Huntingdonshire District Council,13/08/2015,173253,9050227326,5,63.65,Royal Mail,CR027083,Electoral Registration,Postage,231
http://statistics.data.gov.uk/id/local-authority/12UE,Huntingdonshire District Council,27/08/2015,174191,9050305019,5,23039.76,Royal Mail,CR027083,Electoral Registration,Postage,231
http://statistics.data.gov.uk/id/local-authority/12UE,Huntingdonshire District Council,13/08/2015,173218,IN16PS15004563,5,143.91,Whistl,CR479965,Electoral Registration,Postage,231
http://statistics.data.gov.uk/id/local-authority/12UE,Huntingdonshire District Council,27/08/2015,174195,IN16PS15004848,5,16.67,Whistl,CR479965,Electoral Registration,Postage,231
http://statistics.data.gov.uk/id/local-authority/12UE,Huntingdonshire District Council,20/08/2015,174199,9050322874,5,366.34,Royal Mail,CR027083,One Leisure St Ives,Postage,231
http://statistics.data.gov.uk/id/local-authority/12UE,Huntingdonshire District Council,06/08/2015,172632,IN16PS15004393,5,1331.58,Whistl,CR479965,Revenue Services Mus,Postage,231
http://statistics.data.gov.uk/id/local-authority/12UE,Huntingdonshire District Council,13/08/2015,173218,IN16PS15004563,5,480.04,Whistl,CR479965,Revenue Services Mus,Postage,231
http://statistics.data.gov.uk/id/local-authority/12UE,Huntingdonshire District Council,20/08/2015,173221,IN16PS15004696,5,2661.94,Whistl,CR479965,Revenue Services Mus,Postage,231
http://statistics.data.gov.uk/id/local-authority/12UE,Huntingdonshire District Council,27/08/2015,174195,IN16PS15004848,5,1260.85,Whistl,CR479965,Revenue Services Mus,Postage,231
http://statistics.data.gov.uk/id/local-authority/12UE,Huntingdonshire District Council,20/08/2015,173999,2580,5,334.8,Sci Print Limited,CR416581,Elections,Printing (External),220
http://statistics.data.gov.uk/id/local-authority/12UE,Huntingdonshire District Council,20/08/2015,173237,8918,5,621.6,Victoirepress,CR404724,Elections,Printing (External),220
http://statistics.data.gov.uk/id/local-authority/12UE,Huntingdonshire District Council,20/08/2015,174065,41989,5,176.64,Groundsman,CR452706,Grounds Maintenance,Protective Clothing & Uniforms,163
http://statistics.data.gov.uk/id/local-authority/12UE,Huntingdonshire District Council,06/08/2015,172553,47441,5,273.84,Landmark Trading Ltd,CR411433,Grounds Maintenance,Protective Clothing & Uniforms,163
http://statistics.data.gov.uk/id/local-authority/12UE,Huntingdonshire District Council,27/08/2015,174787,SIN0590005,5,1236,Howsafe Ltd,CR000409,Operations Mgt Units,Protective Clothing & Uniforms,163
http://statistics.data.gov.uk/id/local-authority/12UE,Huntingdonshire District Council,27/08/2015,172183,PS007189,5,-5081.28,Ameycespa (East) Ltd,CR127636,Recycling,Recycling Collections,747
http://statistics.data.gov.uk/id/local-authority/12UE,Huntingdonshire District Council,27/08/2015,172184,PSC007192,5,-5643.4,Ameycespa (East) Ltd,CR127636,Recycling,Recycling Collections,747
http://statistics.data.gov.uk/id/local-authority/12UE,Huntingdonshire District Council,27/08/2015,174717,PSI0179580,5,60790.48,Ameycespa (East) Ltd,CR127636,Recycling,Recycling Collections,747
http://statistics.data.gov.uk/id/local-authority/12UE,Huntingdonshire District Council,06/08/2015,172425,689693,5,1283.52,Glasdon Uk Ltd,CR002827,Pathfinder House Site,Refuse Sacks,552
http://statistics.data.gov.uk/id/local-authority/12UE,Huntingdonshire District Council,06/08/2015,173608,DP/90 11 RENEWA,5,385,Information Commissioner,CR404972,Member Allowances & Support,Registration Fee,748
http://statistics.data.gov.uk/id/local-authority/12UE,Huntingdonshire District Council,06/08/2015,173728,04.08.15,5,672,Alexanders,CR415843,Homelessness Management,Removal/Storage,750
http://statistics.data.gov.uk/id/local-authority/12UE,Huntingdonshire District Council,13/08/2015,174179,REDACTED PERSONAL DATA,5,672,Alexanders,CR415843,Homelessness Management,Removal/Storage,750
http://statistics.data.gov.uk/id/local-authority/12UE,Huntingdonshire District Council,13/08/2015,174180,REDACTED PERSONAL DATA,5,648,Alexanders,CR415843,Homelessness Management,Removal/Storage,750
http://statistics.data.gov.uk/id/local-authority/12UE,Huntingdonshire District Council,13/08/2015,174171,REDACTED PERSONAL DATA,5,633.6,Move It Quickly,CR479000,Homelessness Management,Removal/Storage,750
http://statistics.data.gov.uk/id/local-authority/12UE,Huntingdonshire District Council,13/08/2015,174175,REDACTED PERSONAL DATA,5,268.8,Move It Quickly,CR479000,Homelessness Management,Removal/Storage,750
http://statistics.data.gov.uk/id/local-authority/12UE,Huntingdonshire District Council,13/08/2015,173408,10632209,5,5365.75,Cambridgeshire County Council,CR017440,Call Centre,Rent,410
http://statistics.data.gov.uk/id/local-authority/12UE,Huntingdonshire District Council,13/08/2015,173408,10632209,5,4327.25,Cambridgeshire County Council,CR017440,Call Centre,Service Charges,412
http://statistics.data.gov.uk/id/local-authority/12UE,Huntingdonshire District Council,13/08/2015,173403,10632189,5,551.14,Cambridgeshire County Council,CR017440,Customer Service Centres,Service Charges,412
http://statistics.data.gov.uk/id/local-authority/12UE,Huntingdonshire District Council,13/08/2015,174185,875,5,340.6,Snacktime Vmi,CR482479,Operations Mgt Units,Service Charges,412
http://statistics.data.gov.uk/id/local-authority/12UE,Huntingdonshire District Council,13/08/2015,174182,1111,5,252.64,Snacktime Vmi,CR482479,Operations Mgt Units,Service Charges,412
http://statistics.data.gov.uk/id/local-authority/12UE,Huntingdonshire District Council,13/08/2015,174184,1357,5,340.6,Snacktime Vmi,CR482479,Operations Mgt Units,Service Charges,412
http://statistics.data.gov.uk/id/local-authority/12UE,Huntingdonshire District Council,13/08/2015,174183,1603,5,-247.63,Snacktime Vmi,CR482479,Operations Mgt Units,Service Charges,412
http://statistics.data.gov.uk/id/local-authority/12UE,Huntingdonshire District Council,13/08/2015,174183,1603,5,546.77,Snacktime Vmi,CR482479,Operations Mgt Units,Service Charges,412
http://statistics.data.gov.uk/id/local-authority/12UE,Huntingdonshire District Council,20/08/2015,173794,20293,5,-155.4,Snacktime Vmi,CR482479,Operations Mgt Units,Service Charges,412
http://statistics.data.gov.uk/id/local-authority/12UE,Huntingdonshire District Council,20/08/2015,173794,20293,5,456.04,Snacktime Vmi,CR482479,Operations Mgt Units,Service Charges,412
http://statistics.data.gov.uk/id/local-authority/12UE,Huntingdonshire District Council,13/08/2015,172858,INV01847,5,340.6,Snacktime Vmi,CR482479,Operations Mgt Units,Service Charges,412
http://statistics.data.gov.uk/id/local-authority/12UE,Huntingdonshire District Council,13/08/2015,172807,,5,2686.85,J Breheny Contractors Ltd,CR000314,Street Naming,Signs,565
http://statistics.data.gov.uk/id/local-authority/12UE,Huntingdonshire District Council,13/08/2015,172806,JBC/27156/4662/,5,1689.01,J Breheny Contractors Ltd,CR000314,Street Naming,Signs Erecting & Removal,361
http://statistics.data.gov.uk/id/local-authority/12UE,Huntingdonshire District Council,06/08/2015,172924,2015I-01,5,300,Friends Of Sudbury Meadow,CR405135,Parks & Open Spaces,Sitework,359
http://statistics.data.gov.uk/id/local-authority/12UE,Huntingdonshire District Council,06/08/2015,172468,2457465,5,259.92,Insight Direct Uk Ltd,CR000242,Helpdesk,Software,206
http://statistics.data.gov.uk/id/local-authority/12UE,Huntingdonshire District Council,06/08/2015,172470,1443803,5,1768.42,Kelway (Uk) Ltd,CR004345,Helpdesk,Software,206
http://statistics.data.gov.uk/id/local-authority/12UE,Huntingdonshire District Council,06/08/2015,172541,S151275,5,2280,Chipside,CR479533,Off Street Parking,Software,206
http://statistics.data.gov.uk/id/local-authority/12UE,Huntingdonshire District Council,27/08/2015,173609,SUP0003534,5,16626,Gladstone Mrm,CR405717,One Leisure Huntingdon,Software,206
http://statistics.data.gov.uk/id/local-authority/12UE,Huntingdonshire District Council,27/08/2015,173609,SUP0003534,5,8913,Gladstone Mrm,CR405717,One Leisure Ramsey,Software,206
http://statistics.data.gov.uk/id/local-authority/12UE,Huntingdonshire District Council,27/08/2015,173609,SUP0003534,5,8913,Gladstone Mrm,CR405717,One Leisure Sawtry,Software,206
http://statistics.data.gov.uk/id/local-authority/12UE,Huntingdonshire District Council,27/08/2015,173609,SUP0003534,5,17880,Gladstone Mrm,CR405717,One Leisure St Ives,Software,206
http://statistics.data.gov.uk/id/local-authority/12UE,Huntingdonshire District Council,27/08/2015,173609,SUP0003534,5,16626,Gladstone Mrm,CR405717,One Leisure St Neots,Software,206
http://statistics.data.gov.uk/id/local-authority/12UE,Huntingdonshire District Council,06/08/2015,173038,91346680,5,1500,Northgate Information Solutions Uk Ltd,CR028925,Revenue Services Mus,Software,206
http://statistics.data.gov.uk/id/local-authority/12UE,Huntingdonshire District Council,06/08/2015,173036,91346681,5,6000,Northgate Information Solutions Uk Ltd,CR028925,Revenue Services Mus,Software,206
http://statistics.data.gov.uk/id/local-authority/12UE,Huntingdonshire District Council,06/08/2015,172497,3619112,1,1994.4,Espo,CR006566,One Leisure St Ives,Sports Equipment,524
http://statistics.data.gov.uk/id/local-authority/12UE,Huntingdonshire District Council,27/08/2015,173752,3649216,1,14.38,Espo,CR006566,One Leisure St Ives,Stationery,225
http://statistics.data.gov.uk/id/local-authority/12UE,Huntingdonshire District Council,20/08/2015,174139,INV-001348,5,468,Magenta Coaching Solutions,CR480942,Community Services M Us,Training,130
http://statistics.data.gov.uk/id/local-authority/12UE,Huntingdonshire District Council,20/08/2015,173267,42255,5,300,West Anglia Training Assoc.Ltd,CR025035,Environmental Management,Training,130
http://statistics.data.gov.uk/id/local-authority/12UE,Huntingdonshire District Council,13/08/2015,174085,74,5,323.16,Arb Utility Training,CR422366,Grounds Maintenance,Training,130
http://statistics.data.gov.uk/id/local-authority/12UE,Huntingdonshire District Council,13/08/2015,174178,10798,5,717.6,Lime Legal Limited,CR415412,Housing Management Units,Training,130
http://statistics.data.gov.uk/id/local-authority/12UE,Huntingdonshire District Council,13/08/2015,172543,T2015/31,5,1284.41,James Button & Co,CR405456,Member Allowances & Support,Training,130
http://statistics.data.gov.uk/id/local-authority/12UE,Huntingdonshire District Council,20/08/2015,174533,IOSINV006791,5,680,Institute Of Swimming Ltd,CR455603,One Leisure Ramsey,Training,130
http://statistics.data.gov.uk/id/local-authority/12UE,Huntingdonshire District Council,20/08/2015,173266,42248,5,540,West Anglia Training Assoc.Ltd,CR025035,Environmental Management,Training - Operational,131
http://statistics.data.gov.uk/id/local-authority/12UE,Huntingdonshire District Council,13/08/2015,173064,HUNTDC018,5,1530,Optevia Uk Ltd,CR455228,Call Centre,Training - Other,136
http://statistics.data.gov.uk/id/local-authority/12UE,Huntingdonshire District Council,13/08/2015,173441,EVE12904,5,300,Institute Of Licensing(Events) Limited,CR480382,Licences,Training - Other,136
http://statistics.data.gov.uk/id/local-authority/12UE,Huntingdonshire District Council,27/08/2015,173442,EVE12935,5,594,Institute Of Licensing(Events) Limited,CR480382,Licences,Training - Other,136
http://statistics.data.gov.uk/id/local-authority/12UE,Huntingdonshire District Council,20/08/2015,174516,27706,5,391.39,Cintra Ltd,CR028441,Housing Management Units,Translation Services,766
http://statistics.data.gov.uk/id/local-authority/12UE,Huntingdonshire District Council,20/08/2015,174416,58700,5,1740,Global Tree Solutions Ltd,CR400957,Grounds Maintenance,Tree Maintenance,357
http://statistics.data.gov.uk/id/local-authority/12UE,Huntingdonshire District Council,06/08/2015,172970,S0215,7,10374,Peter J Ward,CR404318,Parks & Open Spaces,Trees/Shrubs,555
http://statistics.data.gov.uk/id/local-authority/12UE,Huntingdonshire District Council,27/08/2015,174724,78324,5,1514.99,Bandvulc Truck Tyres,CR406810,Domestic Refuse,Tyres,630
http://statistics.data.gov.uk/id/local-authority/12UE,Huntingdonshire District Council,27/08/2015,174724,78324,5,475.31,Bandvulc Truck Tyres,CR406810,Recycling,Tyres,630
http://statistics.data.gov.uk/id/local-authority/12UE,Huntingdonshire District Council,06/08/2015,172861,12192,5,252,Ian'S Tyre & Exhaust Centre,CR405836,Street Cleaning,Tyres,630
http://statistics.data.gov.uk/id/local-authority/12UE,Huntingdonshire District Council,06/08/2015,173768,74162,5,19159.77,Welbournes Of Wisbech,CR422099,Domestic Refuse,Vehicle Accident Damage,623
http://statistics.data.gov.uk/id/local-authority/12UE,Huntingdonshire District Council,06/08/2015,173771,74163,5,-15133.14,Welbournes Of Wisbech,CR422099,Domestic Refuse,Vehicle Accident Damage,623
http://statistics.data.gov.uk/id/local-authority/12UE,Huntingdonshire District Council,13/08/2015,174145,9351,5,514.56,G&C Coachworks Ltd,CR455755,Grounds Maintenance,Vehicle Accident Damage,623
http://statistics.data.gov.uk/id/local-authority/12UE,Huntingdonshire District Council,13/08/2015,174142,9352,5,870.67,G&C Coachworks Ltd,CR455755,Grounds Maintenance,Vehicle Accident Damage,623
http://statistics.data.gov.uk/id/local-authority/12UE,Huntingdonshire District Council,27/08/2015,173761,80027186,5,647.72,Chassis-Cab Ltd,CR422248,Street Cleaning,Vehicle Accident Damage,623
http://statistics.data.gov.uk/id/local-authority/12UE,Huntingdonshire District Council,27/08/2015,173764,80027213,5,631.52,Chassis-Cab Ltd,CR422248,Street Cleaning,Vehicle Accident Damage,623
http://statistics.data.gov.uk/id/local-authority/12UE,Huntingdonshire District Council,27/08/2015,173716,363,5,295,D A Payne Coach Hire,CR411218,Leisure Development,Vehicle Hire,607
http://statistics.data.gov.uk/id/local-authority/12UE,Huntingdonshire District Council,06/08/2015,173705,CE003206,5,80305.6,Jlt Speciality Ltd,CR480345,Insurance Premium Holding,Vehicle Insurance,610
http://statistics.data.gov.uk/id/local-authority/12UE,Huntingdonshire District Council,13/08/2015,174043,254705,5,438,Autoelec Cambs,CR480035,Countryside,Vehicle Maintenance External,619
http://statistics.data.gov.uk/id/local-authority/12UE,Huntingdonshire District Council,27/08/2015,174154,39123,5,491.14,E Rand And Sons,CR405746,Domestic Refuse,Vehicle Maintenance External,619
http://statistics.data.gov.uk/id/local-authority/12UE,Huntingdonshire District Council,27/08/2015,174800,20028,5,96,John Henry & Sons Ta Wfl Enterprises Ltd,CR456001,Domestic Refuse,Vehicle Mot,622
http://statistics.data.gov.uk/id/local-authority/12UE,Huntingdonshire District Council,27/08/2015,174800,20028,5,162,John Henry & Sons Ta Wfl Enterprises Ltd,CR456001,Domestic Refuse,Vehicle Mot,622
http://statistics.data.gov.uk/id/local-authority/12UE,Huntingdonshire District Council,13/08/2015,173345,21030,5,120,M & N Vehicle Services,CR480661,Domestic Refuse,Vehicle Mot,622
http://statistics.data.gov.uk/id/local-authority/12UE,Huntingdonshire District Council,13/08/2015,173344,21040,5,95,M & N Vehicle Services,CR480661,Street Cleaning,Vehicle Mot,622
http://statistics.data.gov.uk/id/local-authority/12UE,Huntingdonshire District Council,20/08/2015,173328,172644,5,294,Barton Petroleum,CR409205,Domestic Refuse,Vehicle Oil & Lubricants,626
http://statistics.data.gov.uk/id/local-authority/12UE,Huntingdonshire District Council,20/08/2015,173328,172644,5,126,Barton Petroleum,CR409205,Recycling,Vehicle Oil & Lubricants,626
http://statistics.data.gov.uk/id/local-authority/12UE,Huntingdonshire District Council,27/08/2015,174407,157843,5,268.22,Arthur Ibbett Ltd,CR000430,Countryside,Vehicle Parts & Fittings,625
http://statistics.data.gov.uk/id/local-authority/12UE,Huntingdonshire District Council,06/08/2015,172856,25789I,5,399.82,A C Commercials,CR000141,Domestic Refuse,Vehicle Parts & Fittings,625
http://statistics.data.gov.uk/id/local-authority/12UE,Huntingdonshire District Council,06/08/2015,172855,257947I,5,315.51,A C Commercials,CR000141,Domestic Refuse,Vehicle Parts & Fittings,625
http://statistics.data.gov.uk/id/local-authority/12UE,Huntingdonshire District Council,06/08/2015,172943,DE10881581,5,389.21,Dennis Eagle Ltd,CR000200,Domestic Refuse,Vehicle Parts & Fittings,625
http://statistics.data.gov.uk/id/local-authority/12UE,Huntingdonshire District Council,06/08/2015,172977,DE10882272,5,416.47,Dennis Eagle Ltd,CR000200,Domestic Refuse,Vehicle Parts & Fittings,625
http://statistics.data.gov.uk/id/local-authority/12UE,Huntingdonshire District Council,13/08/2015,173332,DE10882937,5,352.84,Dennis Eagle Ltd,CR000200,Domestic Refuse,Vehicle Parts & Fittings,625
http://statistics.data.gov.uk/id/local-authority/12UE,Huntingdonshire District Council,13/08/2015,173330,DE10883260,5,326.23,Dennis Eagle Ltd,CR000200,Domestic Refuse,Vehicle Parts & Fittings,625
http://statistics.data.gov.uk/id/local-authority/12UE,Huntingdonshire District Council,20/08/2015,174045,DE10885795,5,138.35,Dennis Eagle Ltd,CR000200,Domestic Refuse,Vehicle Parts & Fittings,625
http://statistics.data.gov.uk/id/local-authority/12UE,Huntingdonshire District Council,20/08/2015,174046,DE10885796,5,518.2,Dennis Eagle Ltd,CR000200,Domestic Refuse,Vehicle Parts & Fittings,625
http://statistics.data.gov.uk/id/local-authority/12UE,Huntingdonshire District Council,20/08/2015,173339,20114853,5,427.2,Intercounty Truck & Van Ltd,CR141141,Domestic Refuse,Vehicle Parts & Fittings,625
http://statistics.data.gov.uk/id/local-authority/12UE,Huntingdonshire District Council,13/08/2015,173345,21030,5,1368.43,M & N Vehicle Services,CR480661,Domestic Refuse,Vehicle Parts & Fittings,625
http://statistics.data.gov.uk/id/local-authority/12UE,Huntingdonshire District Council,06/08/2015,172567,96314302,5,725.81,Terberg Matec Uk Ltd,CR402183,Domestic Refuse,Vehicle Parts & Fittings,625
http://statistics.data.gov.uk/id/local-authority/12UE,Huntingdonshire District Council,20/08/2015,174044,96314802,5,439.33,Terberg Matec Uk Ltd,CR402183,Domestic Refuse,Vehicle Parts & Fittings,625
http://statistics.data.gov.uk/id/local-authority/12UE,Huntingdonshire District Council,20/08/2015,174044,96314802,5,169.34,Terberg Matec Uk Ltd,CR402183,Domestic Refuse,Vehicle Parts & Fittings,625
http://statistics.data.gov.uk/id/local-authority/12UE,Huntingdonshire District Council,27/08/2015,174052,157448,5,280.8,Arthur Ibbett Ltd,CR000430,Grounds Maintenance,Vehicle Parts & Fittings,625
http://statistics.data.gov.uk/id/local-authority/12UE,Huntingdonshire District Council,27/08/2015,173777,773083,5,428.11,Ernest Doe & Sons,CR000261,Grounds Maintenance,Vehicle Parts & Fittings,625
http://statistics.data.gov.uk/id/local-authority/12UE,Huntingdonshire District Council,06/08/2015,172940,DE10880167,5,527.22,Dennis Eagle Ltd,CR000200,Recycling,Vehicle Parts & Fittings,625
http://statistics.data.gov.uk/id/local-authority/12UE,Huntingdonshire District Council,06/08/2015,172945,DE10881215,5,1828.13,Dennis Eagle Ltd,CR000200,Recycling,Vehicle Parts & Fittings,625
http://statistics.data.gov.uk/id/local-authority/12UE,Huntingdonshire District Council,06/08/2015,172946,DE10881216,5,302.9,Dennis Eagle Ltd,CR000200,Recycling,Vehicle Parts & Fittings,625
http://statistics.data.gov.uk/id/local-authority/12UE,Huntingdonshire District Council,06/08/2015,172975,DE10882599,5,373.12,Dennis Eagle Ltd,CR000200,Recycling,Vehicle Parts & Fittings,625
http://statistics.data.gov.uk/id/local-authority/12UE,Huntingdonshire District Council,13/08/2015,173333,DE10882938,5,1828.13,Dennis Eagle Ltd,CR000200,Recycling,Vehicle Parts & Fittings,625
http://statistics.data.gov.uk/id/local-authority/12UE,Huntingdonshire District Council,20/08/2015,174045,DE10885795,5,196.16,Dennis Eagle Ltd,CR000200,Recycling,Vehicle Parts & Fittings,625
http://statistics.data.gov.uk/id/local-authority/12UE,Huntingdonshire District Council,27/08/2015,174117,DE10886142,5,594.35,Dennis Eagle Ltd,CR000200,Recycling,Vehicle Parts & Fittings,625
http://statistics.data.gov.uk/id/local-authority/12UE,Huntingdonshire District Council,06/08/2015,172920,125297,5,348,Silver Shield Windscreens,CR024745,Recycling,Vehicle Parts & Fittings,625
http://statistics.data.gov.uk/id/local-authority/12UE,Huntingdonshire District Council,20/08/2015,174044,96314802,5,170.81,Terberg Matec Uk Ltd,CR402183,Recycling,Vehicle Parts & Fittings,625
http://statistics.data.gov.uk/id/local-authority/12UE,Huntingdonshire District Council,20/08/2015,174044,96314802,5,72.58,Terberg Matec Uk Ltd,CR402183,Recycling,Vehicle Parts & Fittings,625
http://statistics.data.gov.uk/id/local-authority/12UE,Huntingdonshire District Council,13/08/2015,174043,254705,5,321.6,Autoelec Cambs,CR480035,Street Cleaning,Vehicle Parts & Fittings,625
http://statistics.data.gov.uk/id/local-authority/12UE,Huntingdonshire District Council,06/08/2015,172919,61286868,5,370.84,Johnston Engineering Ltd,CR029831,Street Cleaning,Vehicle Parts & Fittings,625
http://statistics.data.gov.uk/id/local-authority/12UE,Huntingdonshire District Council,20/08/2015,174422,61288361,5,303.29,Johnston Engineering Ltd,CR029831,Street Cleaning,Vehicle Parts & Fittings,625
http://statistics.data.gov.uk/id/local-authority/12UE,Huntingdonshire District Council,27/08/2015,174826,61295608,5,281.75,Johnston Engineering Ltd,CR029831,Street Cleaning,Vehicle Parts & Fittings,625
http://statistics.data.gov.uk/id/local-authority/12UE,Huntingdonshire District Council,13/08/2015,173344,21040,5,2631.65,M & N Vehicle Services,CR480661,Street Cleaning,Vehicle Parts & Fittings,625
http://statistics.data.gov.uk/id/local-authority/12UE,Huntingdonshire District Council,20/08/2015,173340,58360585,5,411.38,Marshall Motor Group,CR009641,Street Cleaning,Vehicle Parts & Fittings,625
http://statistics.data.gov.uk/id/local-authority/12UE,Huntingdonshire District Council,27/08/2015,174732,10067167,5,251.95,Lucozade Ribena Suntory Ltd,CR422660,One Leisure Huntingdon,Vending Materials,560
http://statistics.data.gov.uk/id/local-authority/12UE,Huntingdonshire District Council,27/08/2015,174730,10077376,5,252.16,Lucozade Ribena Suntory Ltd,CR422660,One Leisure Huntingdon,Vending Materials,560
http://statistics.data.gov.uk/id/local-authority/12UE,Huntingdonshire District Council,06/08/2015,172560,58547,5,251.97,Snackline Direct Ltd,CR478090,One Leisure Huntingdon,Vending Materials,560
http://statistics.data.gov.uk/id/local-authority/12UE,Huntingdonshire District Council,13/08/2015,173647,10074957,5,284.69,Lucozade Ribena Suntory Ltd,CR422660,One Leisure Ramsey,Vending Materials,560
http://statistics.data.gov.uk/id/local-authority/12UE,Huntingdonshire District Council,13/08/2015,173364,2102099291,5,365.36,Booker Cash And Carry,CR027611,One Leisure Sawtry,Vending Materials,560
http://statistics.data.gov.uk/id/local-authority/12UE,Huntingdonshire District Council,06/08/2015,173424,10072068,5,321.98,Lucozade Ribena Suntory Ltd,CR422660,One Leisure St Ives,Vending Materials,560
http://statistics.data.gov.uk/id/local-authority/12UE,Huntingdonshire District Council,27/08/2015,174728,10067168,5,476.14,Lucozade Ribena Suntory Ltd,CR422660,One Leisure St Neots,Vending Materials,560
http://statistics.data.gov.uk/id/local-authority/12UE,Huntingdonshire District Council,27/08/2015,173818,150055692,5,269.55,Pelican Rouge Coffee Solutions Ltd,CR003340,One Leisure St Neots,Vending Materials,560
http://statistics.data.gov.uk/id/local-authority/12UE,Huntingdonshire District Council,06/08/2015,173426,58610,5,756.62,Snackline Direct Ltd,CR478090,One Leisure St Neots,Vending Materials,560
http://statistics.data.gov.uk/id/local-authority/12UE,Huntingdonshire District Council,27/08/2015,174502,SBO1022910,5,326.38,Veolia Es Uk Ltd,CR478889,One Leisure Huntingdon,Waste Disposal,763
http://statistics.data.gov.uk/id/local-authority/12UE,Huntingdonshire District Council,27/08/2015,174519,SBO1022912,5,765.53,Veolia Es Uk Ltd,CR478889,One Leisure St Ives,Waste Disposal,763
http://statistics.data.gov.uk/id/local-authority/12UE,Huntingdonshire District Council,20/08/2015,174091,2589.93,5,2589.93,Cambridgeshire County Council,CR006678,Trade Refuse,Waste Disposal,763
http://statistics.data.gov.uk/id/local-authority/12UE,Huntingdonshire District Council,20/08/2015,174360,112579685,5,335.81,Anglian Water,CR000071,Countryside,Water & Sewerage,432
http://statistics.data.gov.uk/id/local-authority/12UE,Huntingdonshire District Council,13/08/2015,173644,110638988,5,2530.96,Anglian Water,CR000071,One Leisure Huntingdon,Water & Sewerage,432
http://statistics.data.gov.uk/id/local-authority/12UE,Huntingdonshire District Council,20/08/2015,173652,793,6,926.47,Abbey College,CR128984,One Leisure Ramsey,Water & Sewerage,432
http://statistics.data.gov.uk/id/local-authority/12UE,Huntingdonshire District Council,06/08/2015,173283,126877703,5,1897.71,Anglian Water,CR000071,One Leisure Sawtry,Water & Sewerage,432
http://statistics.data.gov.uk/id/local-authority/12UE,Huntingdonshire District Council,06/08/2015,172405,54754,5,26.96,Beebys Limited,CR415822,Bus Stations,Window Cleaning,442
http://statistics.data.gov.uk/id/local-authority/12UE,Huntingdonshire District Council,20/08/2015,585040,781,1,271.38,St Ives Town Council,CR000701,Bus Stations,Window Cleaning,442
